Workbook

Sheet Új táblázat
A1: SZTE NYOMÁSTARTÓ BERENDEZÉSEK | L1: ESEDÉKES VIZSGÁLAT ÉVE
A2: SZTE számozás | B2: Intézmény neve | C2: Üzemel | D2: Berendezés funkciója | E2: Típus | F2: Gy. szám | G2: Gy.év | H2: KAR megnev.: | I2: Besorolási nyomás (>0,5) | J2: Besorolási térfogat (>25) | K2: ps*v [bar * liter] (>1000) | L2: Üzemi ellenőrzés | M2: Belső ellenőrzés | N2: Szilárdsági ellenőrzés | O2: Utolsó vizsgálat éve | P2: Legközelebbi vizsgálat éve | Q2: Hatósági ellenőrzésre kötelezett? | R2: Vizsgálathoz kell csere készülék? | S2: Megjegyzés | T2: Kapcsolattartó
A3: 1 | B3: selejtezve | I3: 0 | J3: 0 | K3: =(Táblázat2[[#This Row],[Besorolási nyomás (>0,5)]]*Táblázat2[[#This Row],[Besorolási térfogat (>25)]]) -> 0 | P3: =MIN(Táblázat2[[#This Row],[Üzemi ellenőrzés]:[Szilárdsági ellenőrzés]]) -> 0 | R3: nem
A4: 2 | B4: Gyermekklinika | C4: Korányi fasor 14-15. | D4: légtartály | F4: 204895 | G4: 1995 | H4: ÁOK (b) | I4: 7 | J4: 500 | K4: =(Táblázat2[[#This Row],[Besorolási nyomás (>0,5)]]*Táblázat2[[#This Row],[Besorolási térfogat (>25)]]) -> 3500 | L4: 2024 | M4: 2028 | N4: 2028 | O4: 2019 | P4: =MIN(Táblázat2[[#This Row],[Üzemi ellenőrzés]:[Szilárdsági ellenőrzés]]) -> 2024 | Q4: igen | R4: igen | T4: Farkas Bertalan: 30/248-7454
A5: 3 | B5: Sebészeti klinika (ÁTÍTÉS ALATT) | C5: SELEJT ! / Sziveri info / | D5: sterilező | E5: GET | F5: 900045 | G5: 1990 | H5: ÁOK (b) | I5: 3.5 | J5: 540 | K5: =(Táblázat2[[#This Row],[Besorolási nyomás (>0,5)]]*Táblázat2[[#This Row],[Besorolási térfogat (>25)]]) -> 1890 | O5: 2017 | P5: =MIN(Táblázat2[[#This Row],[Üzemi ellenőrzés]:[Szilárdsági ellenőrzés]]) -> 0 | Q5: nem | R5: nem | S5: 2/2016 (I.5.) NGM rendelet szerint a továbbiakban nem bejel. és ellenőrzés köteles, a további ell.-ről a tulajdonos rendelk. | T5: Az épület átépítés alatt!
A6: 4 | B6: Sebészeti klinika (ÁTÍTÉS ALATT) | C6: SELEJT ! / Sziveri info / | D6: sterilező | E6: GET | F6: 900046 | G6: 1990 | H6: ÁOK (b) | I6: 3.5 | J6: 540 | K6: =(Táblázat2[[#This Row],[Besorolási nyomás (>0,5)]]*Táblázat2[[#This Row],[Besorolási térfogat (>25)]]) -> 1890 | O6: 2017 | P6: =MIN(Táblázat2[[#This Row],[Üzemi ellenőrzés]:[Szilárdsági ellenőrzés]]) -> 0 | Q6: nem | R6: nem | S6: 2/2016 (I.5.) NGM rendelet szerint a továbbiakban nem bejel. és ellenőrzés köteles, a további ell.-ről a tulajdonos rendelk. | T6: Az épület átépítés alatt!
A7: 5 | B7: Sebészeti klinika (ÁTÍTÉS ALATT) | C7: SELEJT ! / Sziveri info / | D7: gőzfejlesztő | E7: CERT | F7: 27030 | G7: 2002 | H7: ÁOK (b) | I7: 4.5 | J7: 53 | K7: =(Táblázat2[[#This Row],[Besorolási nyomás (>0,5)]]*Táblázat2[[#This Row],[Besorolási térfogat (>25)]]) -> 238.5 | O7: 2016 | P7: =MIN(Táblázat2[[#This Row],[Üzemi ellenőrzés]:[Szilárdsági ellenőrzés]]) -> 0 | Q7: nem | R7: nem | S7: 2/2016 (I.5.) NGM rendelet szerint a továbbiakban nem bejel. és ellenőrzés köteles, a további ell.-ről a tulajdonos rendelk. | T7: Az épület átépítés alatt!
A8: 6 | B8: Sebészeti klinika (ÁTÍTÉS ALATT) | C8: Szeged, Pécsi u. 6. | D8: légtartály | F8: 209895 | G8: 1995 | H8: ÁOK (b) | I8: 10 | J8: 500 | K8: =(Táblázat2[[#This Row],[Besorolási nyomás (>0,5)]]*Táblázat2[[#This Row],[Besorolási térfogat (>25)]]) -> 5000 | L8: 2019 | M8: 2021 | N8: 2026 | O8: 2016 | P8: =MIN(Táblázat2[[#This Row],[Üzemi ellenőrzés]:[Szilárdsági ellenőrzés]]) -> 2019 | Q8: igen | R8: nem | T8: Az épület átépítés alatt!
A9: 7 | B9: Szemészeti klinika | C9: SELEJT ! / Sziveri info / | D9: gőzfejlesztő | E9: CERT | F9: 27029 | G9: 2002 | H9: ÁOK (b) | I9: 4.5 | J9: 53 | K9: =(Táblázat2[[#This Row],[Besorolási nyomás (>0,5)]]*Táblázat2[[#This Row],[Besorolási térfogat (>25)]]) -> 238.5 | O9: 2016 | P9: =MIN(Táblázat2[[#This Row],[Üzemi ellenőrzés]:[Szilárdsági ellenőrzés]]) -> 0 | Q9: nem | R9: nem | S9: 2/2016 (I.5.) NGM rendelet szerint a továbbiakban nem bejel. és ellenőrzés köteles, a további ell.-ről a tulajdonos rendelk. | T9: Zsigó Erika: 30/943-8255
A10: 8 | B10: Szemészeti klinika | C10: SELEJT ! / Sziveri info / | D10: sterilező | E10: SANAMIJ | F10: 86303 | G10: 1986 | H10: ÁOK (b) | I10: 3 | J10: 500 | K10: =(Táblázat2[[#This Row],[Besorolási nyomás (>0,5)]]*Táblázat2[[#This Row],[Besorolási térfogat (>25)]]) -> 1500 | L10: 2018 | M10: 2022 | N10: 2027 | O10: 2015 | P10: =MIN(Táblázat2[[#This Row],[Üzemi ellenőrzés]:[Szilárdsági ellenőrzés]]) -> 2018 | Q10: igen | R10: nem | T10: Zsigó Erika: 30/943-8255
A11: 9 | B11: I. sz. Belgyógy. Kl. | C11: SELEJT ! / Sziveri info / | D11: sterilező | E11: SANAMIJ | F11: 88023 | G11: 1990 | H11: ÁOK (b) | I11: 3 | J11: 520 | K11: =(Táblázat2[[#This Row],[Besorolási nyomás (>0,5)]]*Táblázat2[[#This Row],[Besorolási térfogat (>25)]]) -> 1560 | O11: 2017 | P11: =MIN(Táblázat2[[#This Row],[Üzemi ellenőrzés]:[Szilárdsági ellenőrzés]]) -> 0 | Q11: nem | R11: nem | S11: 2/2016 (I.5.) NGM rendelet szerint a továbbiakban nem bejel. és ellenőrzés köteles, a további ell.-ről a tulajdonos rendelk.
A12: 10 | B12: 410 ágyas klinika | C12: SELEJT ! / Sziveri info / | D12: sterilező | E12: SANAMIJ | F12: 95024 | G12: 1995 | H12: ÁOK (b) | I12: 3 | J12: 520 | K12: =(Táblázat2[[#This Row],[Besorolási nyomás (>0,5)]]*Táblázat2[[#This Row],[Besorolási térfogat (>25)]]) -> 1560 | O12: 2017 | P12: =MIN(Táblázat2[[#This Row],[Üzemi ellenőrzés]:[Szilárdsági ellenőrzés]]) -> 0 | Q12: nem | R12: nem | S12: 2/2016 (I.5.) NGM rendelet szerint a továbbiakban nem bejel. és ellenőrzés köteles, a további ell.-ről a tulajdonos rendelk. | T12: Rósa Julianna: 70/622-5557
A13: 11 | B13: 410 ágyas klinika | C13: SELEJT ! / Sziveri info / | D13: sterilező | E13: SANAMIJ | F13: 95025 | G13: 1995 | H13: ÁOK (b) | I13: 3 | J13: 520 | K13: =(Táblázat2[[#This Row],[Besorolási nyomás (>0,5)]]*Táblázat2[[#This Row],[Besorolási térfogat (>25)]]) -> 1560 | O13: 2017 | P13: =MIN(Táblázat2[[#This Row],[Üzemi ellenőrzés]:[Szilárdsági ellenőrzés]]) -> 0 | Q13: nem | R13: nem | S13: 2/2016 (I.5.) NGM rendelet szerint a továbbiakban nem bejel. és ellenőrzés köteles, a további ell.-ről a tulajdonos rendelk. | T13: Rósa Julianna: 70/622-5557
A14: 12 | B14: 410 ágyas klinika | C14: SELEJT ! / Sziveri info / | D14: sterilező | E14: SANAMIJ | F14: 90004 | G14: 1991 | H14: ÁOK (b) | I14: 3 | J14: 520 | K14: =(Táblázat2[[#This Row],[Besorolási nyomás (>0,5)]]*Táblázat2[[#This Row],[Besorolási térfogat (>25)]]) -> 1560 | O14: 2017 | P14: =MIN(Táblázat2[[#This Row],[Üzemi ellenőrzés]:[Szilárdsági ellenőrzés]]) -> 0 | Q14: nem | R14: nem | S14: 2/2016 (I.5.) NGM rendelet szerint a továbbiakban nem bejel. és ellenőrzés köteles, a további ell.-ről a tulajdonos rendelk. | T14: Rósa Julianna: 70/622-5557
A15: 13 | B15: selejtezve | I15: 0 | J15: 0 | K15: =(Táblázat2[[#This Row],[Besorolási nyomás (>0,5)]]*Táblázat2[[#This Row],[Besorolási térfogat (>25)]]) -> 0 | P15: =MIN(Táblázat2[[#This Row],[Üzemi ellenőrzés]:[Szilárdsági ellenőrzés]]) -> 0 | R15: nem
A16: 14 | B16: selejtezve | I16: 0 | J16: 0 | K16: =(Táblázat2[[#This Row],[Besorolási nyomás (>0,5)]]*Táblázat2[[#This Row],[Besorolási térfogat (>25)]]) -> 0 | P16: =MIN(Táblázat2[[#This Row],[Üzemi ellenőrzés]:[Szilárdsági ellenőrzés]]) -> 0 | R16: nem
A17: 15 | B17: Központi Kazánház | C17: Semmelweis u. 8. | D17: légtartály | F17: 2062 | G17: 1983 | H17: ÁOK (b) | I17: 10 | J17: 500 | K17: =(Táblázat2[[#This Row],[Besorolási nyomás (>0,5)]]*Táblázat2[[#This Row],[Besorolási térfogat (>25)]]) -> 5000 | L17: 2020 | M17: 2022 | N17: 2027 | O17: 2017 | P17: =MIN(Táblázat2[[#This Row],[Üzemi ellenőrzés]:[Szilárdsági ellenőrzés]]) -> 2020 | Q17: igen | R17: nem | T17: Borbély Attila: 30/371-7512
A18: 16 | B18: selejtezve | I18: 0 | J18: 0 | K18: =(Táblázat2[[#This Row],[Besorolási nyomás (>0,5)]]*Táblázat2[[#This Row],[Besorolási térfogat (>25)]]) -> 0 | P18: =MIN(Táblázat2[[#This Row],[Üzemi ellenőrzés]:[Szilárdsági ellenőrzés]]) -> 0 | R18: nem
A19: 17 | B19: Bolyai épület | C19: Aradi vértanúk tere 1. | D19: légtartály | F19: 11853 | G19: 1993 | H19: TTIK | I19: 12 | J19: 350 | K19: =(Táblázat2[[#This Row],[Besorolási nyomás (>0,5)]]*Táblázat2[[#This Row],[Besorolási térfogat (>25)]]) -> 4200 | L19: 2022 | M19: 2027 | N19: 2027 | O19: 2017 | P19: =MIN(Táblázat2[[#This Row],[Üzemi ellenőrzés]:[Szilárdsági ellenőrzés]]) -> 2022 | Q19: igen | R19: nem | T19: Kovács István 0670 3387482
A20: 18 | B20: Bolyai épület | C20: Aradi vértanúk tere 1. | D20: légtartály | F20: 8442 | G20: 1996 | H20: TTIK | I20: 7 | J20: 100 | K20: =(Táblázat2[[#This Row],[Besorolási nyomás (>0,5)]]*Táblázat2[[#This Row],[Besorolási térfogat (>25)]]) -> 700 | L20: - | M20: - | N20: - | O20: - | P20: =MIN(Táblázat2[[#This Row],[Üzemi ellenőrzés]:[Szilárdsági ellenőrzés]]) -> 0 | R20: nem | S20: ÜZEMEN KÍVÜL / Cserére vár | T20: Kovács István 0670 3387482
A21: 19 | B21: Kémiai épület | C21: Dóm tér 7-8. | D21: légtartály | F21: 53 | G21: 2000 | H21: TTIK | I21: 11 | J21: 50 | K21: =(Táblázat2[[#This Row],[Besorolási nyomás (>0,5)]]*Táblázat2[[#This Row],[Besorolási térfogat (>25)]]) -> 550 | L21: - | M21: - | N21: - | O21: - | P21: =MIN(Táblázat2[[#This Row],[Üzemi ellenőrzés]:[Szilárdsági ellenőrzés]]) -> 0 | Q21: nem | R21: nem | T21: Kovács István 0670 3387482
A22: 20 | B22: Kémiai épület | C22: Dóm tér 7-8. | D22: légtartály | F22: 5150 | G22: 1999 | H22: TTIK | I22: 11 | J22: 300 | K22: =(Táblázat2[[#This Row],[Besorolási nyomás (>0,5)]]*Táblázat2[[#This Row],[Besorolási térfogat (>25)]]) -> 3300 | L22: 2020 | M22: 2025 | N22: 2025 | O22: 2015 | P22: =MIN(Táblázat2[[#This Row],[Üzemi ellenőrzés]:[Szilárdsági ellenőrzés]]) -> 2020 | Q22: igen | R22: nem | T22: Kovács István 0670 3387482
A23: 21 | B23: Klinikai Mikrobiol. Int. | C23: SELEJT ! / Sziveri info / | D23: autokláv | F23: 278160 | G23: 1977 | H23: ÁOK (b) | I23: 2.5 | J23: 115 | K23: =(Táblázat2[[#This Row],[Besorolási nyomás (>0,5)]]*Táblázat2[[#This Row],[Besorolási térfogat (>25)]]) -> 287.5 | L23: - | M23: - | N23: - | O23: - | P23: =MIN(Táblázat2[[#This Row],[Üzemi ellenőrzés]:[Szilárdsági ellenőrzés]]) -> 0 | R23: nem | S23: ÜZEMEN KÍVÜL
A24: 22 | B24: Klinikai Mikrobiol. Int. | C24: SELEJT ! / Sziveri info / | D24: autokláv | H24: ÁOK (b) | I24: 2.5 | J24: 100 | K24: =(Táblázat2[[#This Row],[Besorolási nyomás (>0,5)]]*Táblázat2[[#This Row],[Besorolási térfogat (>25)]]) -> 250 | P24: =MIN(Táblázat2[[#This Row],[Üzemi ellenőrzés]:[Szilárdsági ellenőrzés]]) -> 0 | R24: nem | S24: MTA tulajdonába került vissza
A25: 23 | B25: Klinikai Mikrobiol. Int. | C25: SELEJT ! / Sziveri info / | D25: autokláv | F25: 433 | G25: 1977 | H25: ÁOK (b) | I25: 2.5 | J25: 115 | K25: =(Táblázat2[[#This Row],[Besorolási nyomás (>0,5)]]*Táblázat2[[#This Row],[Besorolási térfogat (>25)]]) -> 287.5 | O25: 2016 | P25: =MIN(Táblázat2[[#This Row],[Üzemi ellenőrzés]:[Szilárdsági ellenőrzés]]) -> 0 | Q25: nem | R25: nem | S25: 2/2016 (I.5.) NGM rendelet szerint a továbbiakban nem bejel. és ellenőrzés köteles, a további ell.-ről a tulajdonos rendelk. | T25: Varján Melinda: 30/958-8365
A26: 24 | B26: Klinikai Mikrobiol. Int. | C26: SELEJT ! / Sziveri info / | D26: autokláv | F26: 31-4764/0 | G26: 1987 | H26: ÁOK (b) | I26: 3 | J26: 150 | K26: =(Táblázat2[[#This Row],[Besorolási nyomás (>0,5)]]*Táblázat2[[#This Row],[Besorolási térfogat (>25)]]) -> 450 | O26: 2016 | P26: =MIN(Táblázat2[[#This Row],[Üzemi ellenőrzés]:[Szilárdsági ellenőrzés]]) -> 0 | Q26: nem | R26: nem | S26: 2/2016 (I.5.) NGM rendelet szerint a továbbiakban nem bejel. és ellenőrzés köteles, a további ell.-ről a tulajdonos rendelk. | T26: Varján Melinda: 30/958-8366
A27: 25 | B27: Klinikai Mikrobiol. Int. | C27: SELEJT ! / Sziveri info / | D27: autokláv | F27: 452 | G27: 1977 | H27: ÁOK (b) | I27: 2.5 | J27: 115 | K27: =(Táblázat2[[#This Row],[Besorolási nyomás (>0,5)]]*Táblázat2[[#This Row],[Besorolási térfogat (>25)]]) -> 287.5 | O27: 2016 | P27: =MIN(Táblázat2[[#This Row],[Üzemi ellenőrzés]:[Szilárdsági ellenőrzés]]) -> 0 | Q27: nem | R27: nem | S27: 2/2016 (I.5.) NGM rendelet szerint a továbbiakban nem bejel. és ellenőrzés köteles, a további ell.-ről a tulajdonos rendelk. | T27: Varján Melinda: 30/958-8367
A28: 26 | B28: selejtezve | I28: 0 | J28: 0 | K28: =(Táblázat2[[#This Row],[Besorolási nyomás (>0,5)]]*Táblázat2[[#This Row],[Besorolási térfogat (>25)]]) -> 0 | P28: =MIN(Táblázat2[[#This Row],[Üzemi ellenőrzés]:[Szilárdsági ellenőrzés]]) -> 0 | R28: nem
A29: 27 | B29: selejtezve | I29: 0 | J29: 0 | K29: =(Táblázat2[[#This Row],[Besorolási nyomás (>0,5)]]*Táblázat2[[#This Row],[Besorolási térfogat (>25)]]) -> 0 | P29: =MIN(Táblázat2[[#This Row],[Üzemi ellenőrzés]:[Szilárdsági ellenőrzés]]) -> 0 | R29: nem
A30: 28 | B30: Fogklinika | C30: Tisza Lajos krt. 64-66. | D30: légtartály | F30: 668335 | H30: FK | I30: 8 | J30: 110 | K30: =(Táblázat2[[#This Row],[Besorolási nyomás (>0,5)]]*Táblázat2[[#This Row],[Besorolási térfogat (>25)]]) -> 880 | O30: - | P30: =MIN(Táblázat2[[#This Row],[Üzemi ellenőrzés]:[Szilárdsági ellenőrzés]]) -> 0 | Q30: nem | R30: nem | T30: Kapás György: 70/439-9362
A31: 29 | B31: Mikrobiológiai Tanszék | C31: Közép fasor 52. | D31: autokláv | F31: 315382/2 | H31: TTIK | I31: 2.5 | J31: 150 | K31: =(Táblázat2[[#This Row],[Besorolási nyomás (>0,5)]]*Táblázat2[[#This Row],[Besorolási térfogat (>25)]]) -> 375 | O31: 2016 | P31: =MIN(Táblázat2[[#This Row],[Üzemi ellenőrzés]:[Szilárdsági ellenőrzés]]) -> 0 | Q31: nem | R31: nem | S31: 2/2016 (I.5.) NGM rendelet szerint a továbbiakban nem bejel. és ellenőrzés köteles, a további ell.-ről a tulajdonos rendelk. | T31: Kovács István 0670 3387482
A32: 30 | B32: Mikrobiológiai Tanszék | C32: Közép fasor 52. | D32: autokláv | F32: 1511-558-53 | G32: 1958 | H32: TTIK | I32: 2.5 | J32: 125 | K32: =(Táblázat2[[#This Row],[Besorolási nyomás (>0,5)]]*Táblázat2[[#This Row],[Besorolási térfogat (>25)]]) -> 312.5 | O32: 2016 | P32: =MIN(Táblázat2[[#This Row],[Üzemi ellenőrzés]:[Szilárdsági ellenőrzés]]) -> 0 | Q32: nem | R32: nem | S32: 2/2016 (I.5.) NGM rendelet szerint a továbbiakban nem bejel. és ellenőrzés köteles, a további ell.-ről a tulajdonos rendelk. | T32: Kovács István 0670 3387482
A33: 31 | B33: SZTE MK | C33: Moszkvai krt. 5-7. | D33: autokláv | F33: 196001 | G33: 1960 | H33: MK | I33: 3 | J33: 400 | K33: =(Táblázat2[[#This Row],[Besorolási nyomás (>0,5)]]*Táblázat2[[#This Row],[Besorolási térfogat (>25)]]) -> 1200 | L33: - | M33: - | N33: - | O33: 2012 | P33: =MIN(Táblázat2[[#This Row],[Üzemi ellenőrzés]:[Szilárdsági ellenőrzés]]) -> 0 | Q33: nem | R33: nem | S33: ÜZEMEN KÍVÜL | T33: Tiszai Zoltán 0630 3320876
A34: 32 | B34: SZTE MK | C34: Moszkvai krt. 5-7. | D34: légtartály | F34: 2063 | G34: 1988 | H34: MK | I34: 7.5 | J34: 500 | K34: =(Táblázat2[[#This Row],[Besorolási nyomás (>0,5)]]*Táblázat2[[#This Row],[Besorolási térfogat (>25)]]) -> 3750 | L34: - | M34: - | N34: - | O34: 2012 | P34: =MIN(Táblázat2[[#This Row],[Üzemi ellenőrzés]:[Szilárdsági ellenőrzés]]) -> 0 | Q34: igen | R34: nem | S34: ÜZEMEN KÍVÜL | T34: Tiszai Zoltán 0630 3320876
A35: 33 | B35: SZTE MGK Hmvhely | C35: Andrássy u. 15. | D35: autokláv | F35: 81013 | G35: 1981 | H35: MGK | I35: 2.5 | J35: 150 | K35: =(Táblázat2[[#This Row],[Besorolási nyomás (>0,5)]]*Táblázat2[[#This Row],[Besorolási térfogat (>25)]]) -> 375 | O35: 2016 | P35: =MIN(Táblázat2[[#This Row],[Üzemi ellenőrzés]:[Szilárdsági ellenőrzés]]) -> 0 | Q35: nem | R35: nem | S35: 2/2016 (I.5.) NGM rendelet szerint a továbbiakban nem bejel. és ellenőrzés köteles, a további ell.-ről a tulajdonos rendelk. | T35: Kurai Ferenc 0630 2077524
A36: 34 | B36: SZTE MGK Hmvhely | C36: Andrássy u. 15. | D36: autokláv | F36: 2251/9 | H36: MGK | I36: 1.5 | J36: 15 | K36: =(Táblázat2[[#This Row],[Besorolási nyomás (>0,5)]]*Táblázat2[[#This Row],[Besorolási térfogat (>25)]]) -> 22.5 | O36: - | P36: =MIN(Táblázat2[[#This Row],[Üzemi ellenőrzés]:[Szilárdsági ellenőrzés]]) -> 0 | Q36: nem | R36: nem | T36: Kurai Ferenc 0630 2077524
A37: 35 | B37: SZTE MGK Hmvhely | C37: Andrássy u. 15. | D37: autokláv | F37: 22507/9 | G37: 1981 | H37: MGK | I37: 1.5 | J37: 15 | K37: =(Táblázat2[[#This Row],[Besorolási nyomás (>0,5)]]*Táblázat2[[#This Row],[Besorolási térfogat (>25)]]) -> 22.5 | O37: - | P37: =MIN(Táblázat2[[#This Row],[Üzemi ellenőrzés]:[Szilárdsági ellenőrzés]]) -> 0 | Q37: nem | R37: nem | T37: Kurai Ferenc 0630 2077524
A38: 36 | B38: SZTE MGK Hmvhely | C38: Andrássy u. 15. | D38: autokláv | F38: 2253/9 | H38: MGK | I38: 1.5 | J38: 15 | K38: =(Táblázat2[[#This Row],[Besorolási nyomás (>0,5)]]*Táblázat2[[#This Row],[Besorolási térfogat (>25)]]) -> 22.5 | O38: - | P38: =MIN(Táblázat2[[#This Row],[Üzemi ellenőrzés]:[Szilárdsági ellenőrzés]]) -> 0 | Q38: nem | R38: nem | T38: Kurai Ferenc 0630 2077524
A39: 37 | B39: SZTE MGK Hmvhely | C39: Kutasi u. | D39: gáztartály | F39: 507396 | G39: 1996 | H39: MGK | I39: 1 | J39: 500 | K39: =(Táblázat2[[#This Row],[Besorolási nyomás (>0,5)]]*Táblázat2[[#This Row],[Besorolási térfogat (>25)]]) -> 500 | L39: - | M39: - | N39: - | O39: - | P39: =MIN(Táblázat2[[#This Row],[Üzemi ellenőrzés]:[Szilárdsági ellenőrzés]]) -> 0 | R39: nem | S39: Eladva | T39: Kurai Ferenc 0630 2077524
A40: 38 | B40: SZTE Domaszék | C40: Domaszék külterület. | D40: gőzkazán | E40: VERU | F40: 1081 | G40: 1989 | H40: ÁOK (o) | I40: 3.5 | J40: 110 | K40: =(Táblázat2[[#This Row],[Besorolási nyomás (>0,5)]]*Táblázat2[[#This Row],[Besorolási térfogat (>25)]]) -> 385 | L40: - | M40: - | N40: - | O40: 2013 | P40: =MIN(Táblázat2[[#This Row],[Üzemi ellenőrzés]:[Szilárdsági ellenőrzés]]) -> 0 | Q40: nem | R40: nem | S40: ÜZEMEN KÍVÜL
A41: 39 | B41: SZTE Domaszék | C41: Domaszék külterület. | D41: autokláv | F41: 2353 | G41: 1979 | H41: ÁOK (o) | I41: 2.5 | J41: 100 | K41: =(Táblázat2[[#This Row],[Besorolási nyomás (>0,5)]]*Táblázat2[[#This Row],[Besorolási térfogat (>25)]]) -> 250 | L41: - | M41: - | N41: - | O41: - | P41: =MIN(Táblázat2[[#This Row],[Üzemi ellenőrzés]:[Szilárdsági ellenőrzés]]) -> 0 | Q41: igen | R41: nem | S41: ÜZEMEN KÍVÜL
A42: 40 | B42: Anatómia Intézet | C42: Kossuth Lajos sgt 40. | D42: gőzfejlesztő | F42: 10346 | G42: 2000 | H42: ÁOK (o) | I42: 10 | J42: 9.8 | K42: =(Táblázat2[[#This Row],[Besorolási nyomás (>0,5)]]*Táblázat2[[#This Row],[Besorolási térfogat (>25)]]) -> 98 | O42: - | P42: =MIN(Táblázat2[[#This Row],[Üzemi ellenőrzés]:[Szilárdsági ellenőrzés]]) -> 0 | Q42: nem | R42: nem | T42: Gavrán Tibor: 30/928-2230
A43: 41 | B43: Mosoda | C43: Semmelweis u. 8. | D43: légtartály | F43: 17671 | G43: 1981 | H43: ÁOK (o) | I43: 8 | J43: 2000 | K43: =(Táblázat2[[#This Row],[Besorolási nyomás (>0,5)]]*Táblázat2[[#This Row],[Besorolási térfogat (>25)]]) -> 16000 | L43: - | M43: - | N43: - | O43: 2008 | P43: =MIN(Táblázat2[[#This Row],[Üzemi ellenőrzés]:[Szilárdsági ellenőrzés]]) -> 0 | Q43: igen | R43: nem | S43: ÜZEMEN KÍVÜL
A44: 42 | B44: Nagyoktatási épület | C44: Dóm tér 13. | D44: légtartály | F44: 16683 | G44: 1976 | H44: ÁOK (o) | I44: 16 | J44: 1000 | K44: =(Táblázat2[[#This Row],[Besorolási nyomás (>0,5)]]*Táblázat2[[#This Row],[Besorolási térfogat (>25)]]) -> 16000 | L44: - | M44: - | N44: - | O44: 2007 | P44: =MIN(Táblázat2[[#This Row],[Üzemi ellenőrzés]:[Szilárdsági ellenőrzés]]) -> 0 | Q44: igen | R44: nem | S44: ÜZEMEN KÍVÜL
A45: 43 | B45: 410 ágyas klinika | C45: Semmelweis u. 6. | D45: légtartály | F45: 20999 | G45: 1988 | H45: ÁOK (b) | I45: 16 | J45: 1000 | K45: =(Táblázat2[[#This Row],[Besorolási nyomás (>0,5)]]*Táblázat2[[#This Row],[Besorolási térfogat (>25)]]) -> 16000 | L45: 2022 | M45: 2024 | N45: 2029 | O45: 2019 | P45: =MIN(Táblázat2[[#This Row],[Üzemi ellenőrzés]:[Szilárdsági ellenőrzés]]) -> 2022 | Q45: igen | R45: nem | T45: Bakri Attiláné: 30/975-9663
A46: 43/b. | B46: 410 ágyas klinika | C46: Semmelweis u. 6. | D46: légtartály | F46: 21698-21708 | G46: 2006 | H46: ÁOK (b) | I46: 11 | J46: 500 | K46: =(Táblázat2[[#This Row],[Besorolási nyomás (>0,5)]]*Táblázat2[[#This Row],[Besorolási térfogat (>25)]]) -> 5500 | L46: - | M46: - | N46: - | P46: =MIN(Táblázat2[[#This Row],[Üzemi ellenőrzés]:[Szilárdsági ellenőrzés]]) -> 0 | Q46: igen | R46: nem | S46: ÜZEMEN KÍVÜL
A47: 44 | B47: Közp.gyógyszertár | C47: Semmelweis u. 6. | D47: sterilező | E47: GETINGE | F47: 920773 | G47: 1992 | H47: ÁOK (b) | I47: 3.5 | J47: 560 | K47: =(Táblázat2[[#This Row],[Besorolási nyomás (>0,5)]]*Táblázat2[[#This Row],[Besorolási térfogat (>25)]]) -> 1960 | O47: 2017 | P47: =MIN(Táblázat2[[#This Row],[Üzemi ellenőrzés]:[Szilárdsági ellenőrzés]]) -> 0 | Q47: nem | R47: nem | S47: 2/2016 (I.5.) NGM rendelet szerint a továbbiakban nem bejel. és ellenőrzés köteles, a további ell.-ről a tulajdonos rendelk. | T47: Vargáné Edit 62/545-928
A48: 45 | B48: Közp.gyógyszertár | C48: SELEJT ! / Sziveri info / | D48: sterilező | E48: GETINGE | F48: 920772 | G48: 1992 | H48: ÁOK (b) | I48: 3.5 | J48: 560 | K48: =(Táblázat2[[#This Row],[Besorolási nyomás (>0,5)]]*Táblázat2[[#This Row],[Besorolási térfogat (>25)]]) -> 1960 | L48: - | M48: - | N48: - | O48: 2007 | P48: =MIN(Táblázat2[[#This Row],[Üzemi ellenőrzés]:[Szilárdsági ellenőrzés]]) -> 0 | Q48: nem | R48: nem | S48: ÜZEMEN KÍVÜL | T48: Vargáné Edit 62/545-929
A49: 46 | B49: Közp.gyógyszertár | C49: Semmelweis u. 6. | D49: légtartály | F49: 204692 | G49: 1992 | H49: ÁOK (b) | I49: 10 | J49: 500 | K49: =(Táblázat2[[#This Row],[Besorolási nyomás (>0,5)]]*Táblázat2[[#This Row],[Besorolási térfogat (>25)]]) -> 5000 | L49: 2020 | M49: 2020 | N49: 2025 | O49: 2015 | P49: =MIN(Táblázat2[[#This Row],[Üzemi ellenőrzés]:[Szilárdsági ellenőrzés]]) -> 2020 | Q49: igen | R49: nem | T49: Vargáné Edit 62/545-930
A50: 47 | B50: Központi kazánház | C50: Semmelweis u. 8. | D50: gőzkazán | E50: Vitomax 200 HS | F50: 187003050 | G50: 2003 | H50: ÁOK (b) | I50: 12 | J50: 11800 | K50: =(Táblázat2[[#This Row],[Besorolási nyomás (>0,5)]]*Táblázat2[[#This Row],[Besorolási térfogat (>25)]]) -> 141600 | L50: 2018 | M50: 2018 | N50: 2021 | O50: 2018 | P50: 2018 | Q50: igen | R50: nem | S50: Borbély Attila Kazánházvezető ellenőrizteti.
A51: 48 | B51: Központi kazánház | C51: Semmelweis u. 8. | D51: gőzkazán | E51: Vitomax 200 HS | F51: 187003049 | G51: 2003 | H51: ÁOK (b) | I51: 12 | J51: 11800 | K51: =(Táblázat2[[#This Row],[Besorolási nyomás (>0,5)]]*Táblázat2[[#This Row],[Besorolási térfogat (>25)]]) -> 141600 | L51: 2018 | M51: 2018 | N51: 2021 | O51: 2018 | P51: 2018 | Q51: igen | R51: nem | S51: Borbély Attila Kazánházvezető ellenőrizteti.
A52: 49 | B52: Központi kazánház | C52: Semmelweis u. 8. | D52: gőzkazán | E52: 3HO-7/13 | F52: 7672 | G52: 1978 | H52: ÁOK (b) | I52: 12 | J52: 25000 | K52: =(Táblázat2[[#This Row],[Besorolási nyomás (>0,5)]]*Táblázat2[[#This Row],[Besorolási térfogat (>25)]]) -> 300000 | L52: 2018 | M52: 2019 | N52: 2025 | O52: 2018 | P52: =MIN(Táblázat2[[#This Row],[Üzemi ellenőrzés]:[Szilárdsági ellenőrzés]]) -> 2018 | Q52: igen | R52: nem | S52: Borbély Attila Kazánházvezető ellenőrizteti.
A53: 50 | B53: GYTK | C53: Eötvös u. 2. | D53: légtartály | F53: 29016 | G53: 1975 | H53: GYTK | I53: 10 | J53: 2000 | K53: =(Táblázat2[[#This Row],[Besorolási nyomás (>0,5)]]*Táblázat2[[#This Row],[Besorolási térfogat (>25)]]) -> 20000 | L53: 2019 | M53: 2019 | N53: 2019 | O53: 2019 | P53: 2019 | Q53: igen | R53: nem | T53: Zámbó Zoltán 36 70 439 4560
A54: 51 | B54: GYTK | C54: Eötvös u. 2. | D54: autokláv | F54: 15912257 | G54: 1959 | H54: GYTK | I54: 3 | J54: 30 | K54: =(Táblázat2[[#This Row],[Besorolási nyomás (>0,5)]]*Táblázat2[[#This Row],[Besorolási térfogat (>25)]]) -> 90 | O54: - | P54: =MIN(Táblázat2[[#This Row],[Üzemi ellenőrzés]:[Szilárdsági ellenőrzés]]) -> 0 | Q54: nem | R54: nem | T54: Zámbó Zoltán 36 70 439 4560
A55: 52 | B55: Domaszék | C55: Domaszék külterület. | D55: autokláv | F55: 271 | G55: 1989 | H55: ÁOK (o) | I55: 3 | J55: 1400 | K55: =(Táblázat2[[#This Row],[Besorolási nyomás (>0,5)]]*Táblázat2[[#This Row],[Besorolási térfogat (>25)]]) -> 4200 | L55: - | M55: - | N55: - | O55: 2017 | P55: =MIN(Táblázat2[[#This Row],[Üzemi ellenőrzés]:[Szilárdsági ellenőrzés]]) -> 0 | Q55: igen | R55: nem | S55: ÜZEMEN KÍVÜL
A56: 53 | B56: Gyermekkórház | C56: Temesvári krt 35-37. | D56: sterilező | F56: 97002 | G56: 1997 | H56: ÁOK (b) | I56: 3 | J56: 520 | K56: =(Táblázat2[[#This Row],[Besorolási nyomás (>0,5)]]*Táblázat2[[#This Row],[Besorolási térfogat (>25)]]) -> 1560 | P56: =MIN(Táblázat2[[#This Row],[Üzemi ellenőrzés]:[Szilárdsági ellenőrzés]]) -> 0 | Q56: nem | R56: nem | T56: Farkas Bertalan: 30/248-7454
A57: 54 | B57: Gyermekkórház | C57: SELEJT ! / Sziveri info / | D57: sterilező | E57: GS 459-2-FO | F57: 96102 | G57: 1996 | H57: ÁOK (b) | I57: 3 | J57: 147 | K57: =(Táblázat2[[#This Row],[Besorolási nyomás (>0,5)]]*Táblázat2[[#This Row],[Besorolási térfogat (>25)]]) -> 441 | P57: =MIN(Táblázat2[[#This Row],[Üzemi ellenőrzés]:[Szilárdsági ellenőrzés]]) -> 0 | Q57: nem | R57: nem | T57: Farkas Bertalan: 30/248-7454
A58: 55 | B58: SZTE MK | C58: Moszkvai krt. 5-7. | D58: gőzkazán | E58: TP 300/12G I. | F58: 9182 | G58: 1987 | H58: MK | I58: 8 | J58: 860 | K58: =(Táblázat2[[#This Row],[Besorolási nyomás (>0,5)]]*Táblázat2[[#This Row],[Besorolási térfogat (>25)]]) -> 6880 | L58: 2019 | M58: 2021 | N58: 2026 | O58: 2017 | P58: 2019 | Q58: igen | R58: nem | T58: Tiszai Zoltán 0630 3320876
A59: 56 | B59: SZTE MK | C59: Moszkvai krt. 5-7. | D59: gőzkazán | E59: TP 300/12G II. | F59: 9183 | G59: 1987 | H59: MK | I59: 8 | J59: 860 | K59: =(Táblázat2[[#This Row],[Besorolási nyomás (>0,5)]]*Táblázat2[[#This Row],[Besorolási térfogat (>25)]]) -> 6880 | L59: 2018 | M59: 2021 | N59: 2026 | O59: 2017 | P59: 2019 | Q59: igen | R59: nem | T59: Tiszai Zoltán 0630 3320876
A60: 57 | B60: 410 ágyas klinika | C60: Semmelweis u. 6. | D60: légtartály | F60: 3139.2 | G60: 1988 | H60: ÁOK (b) | I60: 15 | J60: 11000 | K60: =(Táblázat2[[#This Row],[Besorolási nyomás (>0,5)]]*Táblázat2[[#This Row],[Besorolási térfogat (>25)]]) -> 165000 | L60: - | M60: - | N60: - | O60: - | P60: =MIN(Táblázat2[[#This Row],[Üzemi ellenőrzés]:[Szilárdsági ellenőrzés]]) -> 0 | Q60: igen | R60: nem | S60: Bérlemény, engedélyekről a szállító gondoskodik | T60: Bakri Attiláné: 30/975-9663
A61: 58 | B61: Gyermekkórház | C61: Temesvári krt 35-37. | D61: légtartály | G61: 1975 | H61: ÁOK (b) | I61: 18 | J61: 15000 | K61: =(Táblázat2[[#This Row],[Besorolási nyomás (>0,5)]]*Táblázat2[[#This Row],[Besorolási térfogat (>25)]]) -> 270000 | L61: - | M61: - | N61: - | O61: - | P61: =MIN(Táblázat2[[#This Row],[Üzemi ellenőrzés]:[Szilárdsági ellenőrzés]]) -> 0 | Q61: igen | R61: nem | S61: Bérlemény, engedélyekről a szállító gondoskodik
A62: 59 | B62: Körintenzív-ONKO | C62: Korányi fasor 7. | D62: légtartály | F62: 903390 | G62: 1990 | H62: ÁOK (b) | I62: 11 | J62: 800 | K62: =(Táblázat2[[#This Row],[Besorolási nyomás (>0,5)]]*Táblázat2[[#This Row],[Besorolási térfogat (>25)]]) -> 8800 | L62: 2024 | M62: 2028 | N62: 2028 | O62: 2019 | P62: 2024 | Q62: igen | R62: igen | T62: Kiss Imre: 30/510-8101
A63: 60 | B63: Mikrobiológiai Tanszék | C63: Közép fasor 52. | D63: autokláv | F63: 31-18200/9 | H63: TTIK | I63: 2.5 | J63: 150 | K63: =(Táblázat2[[#This Row],[Besorolási nyomás (>0,5)]]*Táblázat2[[#This Row],[Besorolási térfogat (>25)]]) -> 375 | O63: 2016 | P63: =MIN(Táblázat2[[#This Row],[Üzemi ellenőrzés]:[Szilárdsági ellenőrzés]]) -> 0 | Q63: nem | R63: nem | S63: 2/2016 (I.5.) NGM rendelet szerint a továbbiakban nem bejel. és ellenőrzés köteles, a további ell.-ről a tulajdonos rendelk. | T63: Kovács István 0670 3387482
A64: 61 | B64: I. sz. Belgyógy. Kl. | C64: Korányi fasor 8. | D64: sterilező | E64: FS 2 | F64: 94015 | G64: 1994 | H64: ÁOK (b) | I64: 0.88 | J64: 21 | K64: =(Táblázat2[[#This Row],[Besorolási nyomás (>0,5)]]*Táblázat2[[#This Row],[Besorolási térfogat (>25)]]) -> 18.48 | P64: =MIN(Táblázat2[[#This Row],[Üzemi ellenőrzés]:[Szilárdsági ellenőrzés]]) -> 0 | Q64: nem | R64: nem
A65: 62 | B65: Béke ép. üveges kompr. | C65: Rerrich B. tér 1. | D65: légtartály | F65: 264 | G65: 2002 | H65: TTIK | I65: 10 | J65: 100 | K65: =(Táblázat2[[#This Row],[Besorolási nyomás (>0,5)]]*Táblázat2[[#This Row],[Besorolási térfogat (>25)]]) -> 1000 | P65: =MIN(Táblázat2[[#This Row],[Üzemi ellenőrzés]:[Szilárdsági ellenőrzés]]) -> 0 | Q65: nem | R65: nem | T65: Kovács István 0670 3387482
A66: 63 | B66: Bolyai épület | C66: Aradi vértanúk tere 1. | D66: légtartály | F66: - | G66: - | H66: - | I66: 0 | J66: 0 | K66: =(Táblázat2[[#This Row],[Besorolási nyomás (>0,5)]]*Táblázat2[[#This Row],[Besorolási térfogat (>25)]]) -> 0 | L66: - | M66: - | N66: - | O66: - | P66: =MIN(Táblázat2[[#This Row],[Üzemi ellenőrzés]:[Szilárdsági ellenőrzés]]) -> 0 | Q66: igen | R66: nem | S66: Bérlemény, engedélyekről a szállító gondoskodik | T66: Kovács István 0670 3387482
A67: 64 | B67: Irinyi épület | C67: Tisza L. krt. 103. | D67: gőzkazán | E67: TP 300/07G | F67: 10909 | G67: 1991 | H67: TTIK | I67: 0.25 | J67: 820 | K67: =(Táblázat2[[#This Row],[Besorolási nyomás (>0,5)]]*Táblázat2[[#This Row],[Besorolási térfogat (>25)]]) -> 205 | L67: - | M67: - | N67: - | P67: =MIN(Táblázat2[[#This Row],[Üzemi ellenőrzés]:[Szilárdsági ellenőrzés]]) -> 0 | Q67: nem | R67: nem | S67: ÜZEMEN KÍVÜL
A68: 65 | B68: Irinyi épület | C68: Tisza L. krt. 103. | D68: gőzkazán | E68: TP 300/07G | F68: 10910 | G68: 1991 | H68: TTIK | I68: 0.25 | J68: 820 | K68: =(Táblázat2[[#This Row],[Besorolási nyomás (>0,5)]]*Táblázat2[[#This Row],[Besorolási térfogat (>25)]]) -> 205 | L68: - | M68: - | N68: - | P68: =MIN(Táblázat2[[#This Row],[Üzemi ellenőrzés]:[Szilárdsági ellenőrzés]]) -> 0 | Q68: nem | R68: nem | S68: ÜZEMEN KÍVÜL
A69: 66 | B69: SZTE MK | C69: Moszkvai krt. 5-7. | D69: gőzkazán | E69: TP 600/12G | F69: 9184 | G69: 1987 | H69: MK | I69: 12 | J69: 0 | K69: =(Táblázat2[[#This Row],[Besorolási nyomás (>0,5)]]*Táblázat2[[#This Row],[Besorolási térfogat (>25)]]) -> 0 | L69: - | M69: - | N69: - | O69: - | P69: =MIN(Táblázat2[[#This Row],[Üzemi ellenőrzés]:[Szilárdsági ellenőrzés]]) -> 0 | Q69: nem | R69: nem | S69: ÜZEMEN KÍVÜL | T69: Tiszai Zoltán
A70: 67 | B70: SZTE MGK Hmvhely | C70: Andrássy u. 15. | D70: gőzkazán | E70: Lavatherm | F70: 765 | G70: 1977 | H70: MGK | I70: 0.3 | J70: 0 | K70: =(Táblázat2[[#This Row],[Besorolási nyomás (>0,5)]]*Táblázat2[[#This Row],[Besorolási térfogat (>25)]]) -> 0 | O70: - | P70: =MIN(Táblázat2[[#This Row],[Üzemi ellenőrzés]:[Szilárdsági ellenőrzés]]) -> 0 | Q70: nem | R70: nem | T70: Kurai Ferenc 0630 2077524
A71: 68 | B71: SZTE MGK Hmvhely | C71: Andrássy u. 15. | D71: gőzkazán | E71: Lavatherm | F71: 752 | G71: 1976 | H71: MGK | I71: 0.3 | J71: 0 | K71: =(Táblázat2[[#This Row],[Besorolási nyomás (>0,5)]]*Táblázat2[[#This Row],[Besorolási térfogat (>25)]]) -> 0 | O71: - | P71: =MIN(Táblázat2[[#This Row],[Üzemi ellenőrzés]:[Szilárdsági ellenőrzés]]) -> 0 | Q71: nem | R71: nem | T71: Kurai Ferenc 0630 2077524
A72: 69 | B72: Mikrobiológiai Tanszék | C72: Közép fasor 52. | D72: autokláv | E72: Atlas Copco GX 7 | F72: 7000969 | G72: 2007 | H72: TTIK | I72: 14 | J72: 500 | K72: =(Táblázat2[[#This Row],[Besorolási nyomás (>0,5)]]*Táblázat2[[#This Row],[Besorolási térfogat (>25)]]) -> 7000 | L72: 2022 | M72: 2027 | N72: 2027 | O72: 2017 | P72: =MIN(Táblázat2[[#This Row],[Üzemi ellenőrzés]:[Szilárdsági ellenőrzés]]) -> 2022 | Q72: igen | R72: nem | T72: Kovács István 0670 3387482
A73: 70 | B73: Női Klinika | C73: Semmelweis u. 1. | D73: sterilező | E73: GE 2609-1 | F73: 980831 | G73: 1998 | H73: ÁOK (b) | I73: 3.5 | J73: 415 | K73: =(Táblázat2[[#This Row],[Besorolási nyomás (>0,5)]]*Táblázat2[[#This Row],[Besorolási térfogat (>25)]]) -> 1452.5 | O73: 2016 | P73: =MIN(Táblázat2[[#This Row],[Üzemi ellenőrzés]:[Szilárdsági ellenőrzés]]) -> 0 | Q73: nem | R73: nem | S73: 2/2016 (I.5.) NGM rendelet szerint a továbbiakban nem bejel. és ellenőrzés köteles, a további ell.-ről a tulajdonos rendelk. | T73: Boldizsárné Anita: 70/456-1622
A74: 71 | B74: Fogklinika | C74: Tisza Lajos krt. 64-66. | D74: sterilező | E74: GE 666-1 | F74: 950427 | G74: 1995 | H74: FK | I74: 3 | J74: 298 | K74: =(Táblázat2[[#This Row],[Besorolási nyomás (>0,5)]]*Táblázat2[[#This Row],[Besorolási térfogat (>25)]]) -> 894 | O74: 2017 | P74: =MIN(Táblázat2[[#This Row],[Üzemi ellenőrzés]:[Szilárdsági ellenőrzés]]) -> 0 | Q74: nem | R74: nem | S74: 2/2016 (I.5.) NGM rendelet szerint a továbbiakban nem bejel. és ellenőrzés köteles, a további ell.-ről a tulajdonos rendelk. | T74: Kapás György: 70/439-9362
A75: 72 | B75: Női Klinika | C75: Semmelweis u. 1. | D75: sterilező | F75: 950406 | G75: 1993 | H75: ÁOK (b) | I75: 1 | J75: 177 | K75: =(Táblázat2[[#This Row],[Besorolási nyomás (>0,5)]]*Táblázat2[[#This Row],[Besorolási térfogat (>25)]]) -> 177 | P75: =MIN(Táblázat2[[#This Row],[Üzemi ellenőrzés]:[Szilárdsági ellenőrzés]]) -> 0 | Q75: nem | R75: nem | T75: Boldizsárné Anita: 70/456-1622
A76: 73 | B76: Női Klinika | C76: Semmelweis u. 1. | D76: sterilező | F76: 60366 | G76: 2006 | H76: ÁOK (b) | I76: 0.4 | J76: 30 | K76: =(Táblázat2[[#This Row],[Besorolási nyomás (>0,5)]]*Táblázat2[[#This Row],[Besorolási térfogat (>25)]]) -> 12 | P76: =MIN(Táblázat2[[#This Row],[Üzemi ellenőrzés]:[Szilárdsági ellenőrzés]]) -> 0 | Q76: nem | R76: nem | T76: Boldizsárné Anita: 70/456-1623
A77: 74 | B77: Orvosi Mikr. Bio. És Immun. Int. | C77: Dóm tér 10. | D77: autokláv | E77: LVS 50/70 | F77: 1220 | G77: 2000 | H77: ÁOK (b) | I77: 2.5 | J77: 137 | K77: =(Táblázat2[[#This Row],[Besorolási nyomás (>0,5)]]*Táblázat2[[#This Row],[Besorolási térfogat (>25)]]) -> 342.5 | O77: 2016 | P77: =MIN(Táblázat2[[#This Row],[Üzemi ellenőrzés]:[Szilárdsági ellenőrzés]]) -> 0 | Q77: nem | R77: nem | S77: 2/2016 (I.5.) NGM rendelet szerint a továbbiakban nem bejel. és ellenőrzés köteles, a további ell.-ről a tulajdonos rendelk.
A78: 75 | B78: selejtezve | I78: 0 | J78: 0 | K78: =(Táblázat2[[#This Row],[Besorolási nyomás (>0,5)]]*Táblázat2[[#This Row],[Besorolási térfogat (>25)]]) -> 0 | P78: =MIN(Táblázat2[[#This Row],[Üzemi ellenőrzés]:[Szilárdsági ellenőrzés]]) -> 0 | R78: nem
A79: 76 | B79: Biokémiai Intézet | C79: Dóm tér 9. | D79: légtartály | E79: ZMB 48 V. | G79: 2005 | H79: ÁOK (b) | I79: 8 | J79: 24 | K79: =(Táblázat2[[#This Row],[Besorolási nyomás (>0,5)]]*Táblázat2[[#This Row],[Besorolási térfogat (>25)]]) -> 192 | P79: =MIN(Táblázat2[[#This Row],[Üzemi ellenőrzés]:[Szilárdsági ellenőrzés]]) -> 0 | Q79: nem | R79: nem | T79: Kovács István 0670 3387482
A80: 77 | B80: II. Korház | C80: Kálvária sgt. 57. | D80: gőzfejlesztő | E80: Certuss | F80: 11780 | G80: 2005 | H80: ÁOK (b) | I80: 10 | J80: 32.3 | K80: =(Táblázat2[[#This Row],[Besorolási nyomás (>0,5)]]*Táblázat2[[#This Row],[Besorolási térfogat (>25)]]) -> 323 | P80: =MIN(Táblázat2[[#This Row],[Üzemi ellenőrzés]:[Szilárdsági ellenőrzés]]) -> 0 | Q80: nem | R80: nem | T80: Tombácz Lajos: 30/437-9464
A81: 78 | B81: II. Korház | C81: Kálvária sgt. 57. | D81: gőzfejlesztő | E81: Certuss | F81: 11823 | G81: 2005 | H81: ÁOK (b) | I81: 10 | J81: 32.3 | K81: =(Táblázat2[[#This Row],[Besorolási nyomás (>0,5)]]*Táblázat2[[#This Row],[Besorolási térfogat (>25)]]) -> 323 | L81: - | M81: - | N81: - | P81: =MIN(Táblázat2[[#This Row],[Üzemi ellenőrzés]:[Szilárdsági ellenőrzés]]) -> 0 | R81: nem | S81: ÜZEMEN KÍVÜL
A82: 79 | B82: II. Korház | C82: SELEJT ! / Sziveri info / | D82: sterilező | E82: SANAMIJ tip 669-2V | F82: 5041 | G82: 2005 | H82: ÁOK (b) | I82: 3 | J82: 493 | K82: =(Táblázat2[[#This Row],[Besorolási nyomás (>0,5)]]*Táblázat2[[#This Row],[Besorolási térfogat (>25)]]) -> 1479 | O82: 2016 | P82: =MIN(Táblázat2[[#This Row],[Üzemi ellenőrzés]:[Szilárdsági ellenőrzés]]) -> 0 | Q82: nem | R82: nem | S82: 2/2016 (I.5.) NGM rendelet szerint a továbbiakban nem bejel. és ellenőrzés köteles, a további ell.-ről a tulajdonos rendelk. | T82: Tombácz Lajos: 30/437-9464
A83: 80 | B83: II. Korház | C83: SELEJT ! / Sziveri info / | D83: sterilező | E83: SANAMIJ tip 669-2V | F83: 5042 | G83: 2005 | H83: ÁOK (b) | I83: 3 | J83: 493 | K83: =(Táblázat2[[#This Row],[Besorolási nyomás (>0,5)]]*Táblázat2[[#This Row],[Besorolási térfogat (>25)]]) -> 1479 | O83: 2016 | P83: =MIN(Táblázat2[[#This Row],[Üzemi ellenőrzés]:[Szilárdsági ellenőrzés]]) -> 0 | Q83: nem | R83: nem | S83: 2/2016 (I.5.) NGM rendelet szerint a továbbiakban nem bejel. és ellenőrzés köteles, a további ell.-ről a tulajdonos rendelk. | T83: Tombácz Lajos: 30/437-9465
A84: 81 | B84: II. Korház | C84: SELEJT ! / Sziveri info / | D84: sterilező | E84: SANAMIJ tip 669-12-V | F84: 5017 | G84: 2005 | H84: ÁOK (b) | I84: 2.75 | J84: 713 | K84: =(Táblázat2[[#This Row],[Besorolási nyomás (>0,5)]]*Táblázat2[[#This Row],[Besorolási térfogat (>25)]]) -> 1960.75 | O84: 2016 | P84: =MIN(Táblázat2[[#This Row],[Üzemi ellenőrzés]:[Szilárdsági ellenőrzés]]) -> 0 | Q84: nem | R84: nem | S84: 2/2016 (I.5.) NGM rendelet szerint a továbbiakban nem bejel. és ellenőrzés köteles, a további ell.-ről a tulajdonos rendelk. | T84: Tombácz Lajos: 30/437-9466
A85: 82 | B85: II. Korház | C85: Kálvária sgt. 57. | D85: légtartály | E85: KV 36 | F85: 360516 | H85: ÁOK (b) | I85: 0 | J85: 0 | K85: =(Táblázat2[[#This Row],[Besorolási nyomás (>0,5)]]*Táblázat2[[#This Row],[Besorolási térfogat (>25)]]) -> 0 | L85: - | M85: - | N85: - | O85: - | P85: =MIN(Táblázat2[[#This Row],[Üzemi ellenőrzés]:[Szilárdsági ellenőrzés]]) -> 0 | Q85: nem | R85: nem | S85: Bérlemény, engedélyekről a szállító gondoskodik | T85: Tombácz Lajos: 30/437-9467
A86: 83 | B86: II. Korház | C86: Kálvária sgt. 57. | D86: gőzfejlesztő | E86: Statim 5000 | F86: 6218844511 | G86: 1999 | H86: ÁOK (b) | I86: 3.5 | J86: 4 | K86: =(Táblázat2[[#This Row],[Besorolási nyomás (>0,5)]]*Táblázat2[[#This Row],[Besorolási térfogat (>25)]]) -> 14 | P86: =MIN(Táblázat2[[#This Row],[Üzemi ellenőrzés]:[Szilárdsági ellenőrzés]]) -> 0 | Q86: nem | R86: nem | T86: Tombácz Lajos: 30/437-9468
A87: 84 | B87: II. Korház | C87: Kálvária sgt. 57. | D87: gőzfejlesztő | E87: Statim 5000 | F87: 6218964012 | G87: 1999 | H87: ÁOK (b) | I87: 3.5 | J87: 4 | K87: =(Táblázat2[[#This Row],[Besorolási nyomás (>0,5)]]*Táblázat2[[#This Row],[Besorolási térfogat (>25)]]) -> 14 | P87: =MIN(Táblázat2[[#This Row],[Üzemi ellenőrzés]:[Szilárdsági ellenőrzés]]) -> 0 | Q87: nem | R87: nem | T87: Tombácz Lajos: 30/437-9469
A88: 85 | B88: II. Korház | C88: Kálvária sgt. 57. | D88: autokláv | E88: Atlas Copco GX 7 | F88: 44925 | G88: 2005 | H88: ÁOK (b) | I88: 11 | J88: 270 | K88: =(Táblázat2[[#This Row],[Besorolási nyomás (>0,5)]]*Táblázat2[[#This Row],[Besorolási térfogat (>25)]]) -> 2970 | L88: xxxx | M88: xxxx | N88: xxxx | O88: 2019 | P88: xxxx | Q88: igen | R88: nem | T88: Tombácz Lajos: 30/437-9470
A89: 86 | B89: II. Korház | C89: Kálvária sgt. 57. | D89: autokláv | E89: Atlas Copco GX 7 | F89: 44918 | G89: 2005 | H89: ÁOK (b) | I89: 11 | J89: 270 | K89: =(Táblázat2[[#This Row],[Besorolási nyomás (>0,5)]]*Táblázat2[[#This Row],[Besorolási térfogat (>25)]]) -> 2970 | M89: 2018 | N89: 2018 | O89: 2019 | P89: xxxx | Q89: igen | R89: nem | S89: 2/2016 (I.5.) NGM rendelet szerint a továbbiakban nem bejel. és ellenőrzés köteles, a további ell.-ről a tulajdonos rendelk. | T89: Tombácz Lajos: 30/437-9471
A90: 87 | B90: II. Korház | C90: Kálvária sgt. 57. | D90: autokláv | E90: Atlas Copco GX 7 | F90: 44935 | G90: 2005 | H90: ÁOK (b) | I90: 11 | J90: 270 | K90: =(Táblázat2[[#This Row],[Besorolási nyomás (>0,5)]]*Táblázat2[[#This Row],[Besorolási térfogat (>25)]]) -> 2970 | L90: xxxx | M90: xxxx | N90: xxxx | O90: 2019 | P90: xxxx | Q90: igen | R90: nem | S90: 2/2016 (I.5.) NGM rendelet szerint a továbbiakban nem bejel. és ellenőrzés köteles, a további ell.-ről a tulajdonos rendelk. | T90: Tombácz Lajos: 30/437-9472
A91: 88 | B91: SZTE MK | C91: Moszkvai krt. 9. | D91: légtartály | F91: 435294 | G91: 2009 | H91: MK | I91: 11 | J91: 500 | K91: =(Táblázat2[[#This Row],[Besorolási nyomás (>0,5)]]*Táblázat2[[#This Row],[Besorolási térfogat (>25)]]) -> 5500 | L91: 2019 | M91: 2021 | N91: 2021 | O91: 2016 | P91: =MIN(Táblázat2[[#This Row],[Üzemi ellenőrzés]:[Szilárdsági ellenőrzés]]) -> 2019 | Q91: igen | R91: nem | T91: Tiszai Zoltán 0630 3320876
A92: 89 | B92: Orvosi Mikr. Bio. És Immun. Int. | C92: Dóm tér 10. | D92: autokláv | E92: MLS-3781 L | F92: 1y1049 | G92: 2011 | H92: ÁOK (b) | I92: 2 | J92: 83 | K92: =(Táblázat2[[#This Row],[Besorolási nyomás (>0,5)]]*Táblázat2[[#This Row],[Besorolási térfogat (>25)]]) -> 166 | P92: =MIN(Táblázat2[[#This Row],[Üzemi ellenőrzés]:[Szilárdsági ellenőrzés]]) -> 0 | Q92: nem | R92: nem | T92: Bakri Attiláné: 30/975-9663
A93: 90 | B93: 410 ágyas klinika | C93: Semmelweis u. 6. | D93: légtartály | F93: 55055 | G93: 2013 | H93: ÁOK (b) | I93: 16 | J93: 1000 | K93: =(Táblázat2[[#This Row],[Besorolási nyomás (>0,5)]]*Táblázat2[[#This Row],[Besorolási térfogat (>25)]]) -> 16000 | L93: 2017 | M93: 2019 | N93: 2024 | O93: 2014 | P93: =MIN(Táblázat2[[#This Row],[Üzemi ellenőrzés]:[Szilárdsági ellenőrzés]]) -> 2017 | Q93: igen | R93: nem | T93: Bakri Attiláné: 30/975-9663
A94: 91 | B94: 410 ágyas klinika | C94: Semmelweis u. 6. | D94: légtartály | F94: 571306 | G94: 2012 | H94: ÁOK (b) | I94: 11 | J94: 500 | K94: =(Táblázat2[[#This Row],[Besorolási nyomás (>0,5)]]*Táblázat2[[#This Row],[Besorolási térfogat (>25)]]) -> 5500 | L94: 2017 | M94: 2019 | N94: 2024 | O94: 2014 | P94: =MIN(Táblázat2[[#This Row],[Üzemi ellenőrzés]:[Szilárdsági ellenőrzés]]) -> 2017 | Q94: igen | R94: nem | T94: Bakri Attiláné: 30/975-9664
A95: 92 | B95: 265-ágyas klinika | C95: Semmelweis u. 6. | D95: légtartály | F95: 52243 | G95: 2013 | H95: ÁOK (b) | I95: 16 | J95: 1000 | K95: =(Táblázat2[[#This Row],[Besorolási nyomás (>0,5)]]*Táblázat2[[#This Row],[Besorolási térfogat (>25)]]) -> 16000 | L95: 2022 | M95: 2023 | N95: 2023 | O95: 2013 | P95: =MIN(Táblázat2[[#This Row],[Üzemi ellenőrzés]:[Szilárdsági ellenőrzés]]) -> 2022 | Q95: igen | R95: nem | T95: Rósa Julianna: 70/622-5557
A96: 93 | B96: 265-ágyas klinika | C96: Semmelweis u. 6. | D96: légtartály | F96: 52244 | G96: 2014 | H96: ÁOK (b) | I96: 16 | J96: 1000 | K96: =(Táblázat2[[#This Row],[Besorolási nyomás (>0,5)]]*Táblázat2[[#This Row],[Besorolási térfogat (>25)]]) -> 16000 | L96: 2022 | M96: 2023 | N96: 2023 | O96: 2019 | P96: =MIN(Táblázat2[[#This Row],[Üzemi ellenőrzés]:[Szilárdsági ellenőrzés]]) -> 2022 | Q96: igen | R96: nem | T96: Rósa Julianna: 70/622-5558
A97: 94 | B97: Optikai és Kvantume. Tansz. | C97: MOL Ipartelep, Déli út | D97: légtartály | F97: 26500 | G97: 2007 | H97: TTIK | I97: 16 | J97: 1000 | K97: =(Táblázat2[[#This Row],[Besorolási nyomás (>0,5)]]*Táblázat2[[#This Row],[Besorolási térfogat (>25)]]) -> 16000 | L97: xxxx | M97: xxxx | N97: xxxx | O97: 2019 | P97: xxxx | Q97: igen | R97: nem | T97: Kovács István 0670 3387482
A98: 95 | B98: TTIK Kémia épület | C98: Dóm tér 7-8. | D98: légtartály | F98: 1137 | G98: 2011 | H98: TTIK | I98: 11 | J98: 270 | K98: =(Táblázat2[[#This Row],[Besorolási nyomás (>0,5)]]*Táblázat2[[#This Row],[Besorolási térfogat (>25)]]) -> 2970 | L98: xxxx | M98: xxxx | N98: xxxx | O98: 2013 | P98: xxxx | Q98: igen | R98: nem | T98: Kovács István 0670 3387482
B102: Új készülékek :
A103: Leltárkörzet név | B103: SZTE azonosító | C103: Eszköz csoport név | D103: Tárgyi eszköz név | E103: Gyáriszám | F103: Üzembe helyezés dátum
A104: Klinikai Mikrobiológia | B104: 504351 | C104: Autokláv | D104: Autoklav ST-121 | E104: 318400/7 | F104: 1978.05.30.
A105: Klinikai Mikrobiológia | B105: 566014 | C105: Autokláv | D105: Laboratory Dline 160L 5075ELVC | E105: 170102183 | F105: 2018.12.01.
A106: Bőrgyógyászati Klinika | B106: 565273 | C106: Autokláv | D106: GETINGE GSS67H | E106: 2531350-210-01 | F106: 2021-11-22
A107: Szemészeti Klinika | B107: 565274 | C107: Autokláv | D107: GETINGE GSS67H | E107: 2531350-200-01 | F107: 2021-08-01
A108: Központi Műtő és Sterilizáló | B108: 564669 | C108: Formalinsterilizáló | D108: SANAMIJ MSTV-FO-6-6-6 | E108: 75100912014 | F108: 2016.04.01.
A109: Szülészeti és Nőgyógyászati Klinika | B109: 556963 | C109: Formalinsterilizáló | D109: ODELGA FAR 4.25 | E109: 4622 | F109: 2004.05.11.
A110: Központi Műtő és Sterilizáló 5820 | B110: 567963 | C110: Autokláv | D110: CELITRON Azteca A-6612 kétajtós 8 STE | E110: 36210007 | F110: 2021.06.16.
A111: Központi Műtő és Sterilizáló 5820 | B111: 567964 | C111: Autokláv | D111: CELITRON Azteca A-6612 kétajtós 8 STE | E111: 36210008 | F111: 2021.06.16.
A112: Központi Műtő és Sterilizáló 5820 | B112: 567965 | C112: Autokláv | D112: CELITRON Azteca A-6612 kétajtós 8 STE | E112: 36210006 | F112: 2021.06.16.
A113: Központi Műtő és Sterilizáló 5820 | B113: 567966 | C113: Autokláv | D113: CELITRON Azteca A-6612 kétajtós 8 STE | E113: 36210009 | F113: 2021.06.16.
A114: Központi Műtő és Sterilizáló 5820 | B114: 567967 | C114: Autokláv | D114: CELITRON Azteca A-6612 kétajtós 8 STE | E114: 36210005 | F114: 2021.06.16.
A115: Fül-Orr-Gégészeti és Fej-Nyaks 0600 | B115: 567968 | C115: Asztali gőzsterilizáló | D115: CELITRON Sting 11 B | E115: 12210001 | F115: 2021.06.16.
A116: Fül-Orr-Gégészeti és Fej-Nyaks 0600 | B116: 568006 | C116: Autoklav | D116: Cliniclave 45 MD dupla ajtós 200L | E116: 2021C45MD1004 | F116: 2021.07.09.
A117: II. Kórház Kp. Sterilizáló | B117: … | C117: Autokláv | D117: CELITRON Azteca A-6612 kétajtós 8 STE | E117: 36210002 | F117: 2021-08-11
A118: II. Kórház Kp. Sterilizáló | B118: … | C118: Autokláv | D118: CELITRON Azteca A-6612 kétajtós 8 STE | E118: 36210003 | F118: 2021-08-11
A119: II. Kórház Kp. Sterilizáló | B119: … | C119: Autokláv | D119: CELITRON Azteca A-6612 kétajtós 8 STE | E119: 36210004 | F119: 2021-08-11

Sheet Olajtároló
I5: Állapot ért. jelentés (4 évente) | J5: Tömörségi vizsg. (5 évente) | K5: Szerkezeti vizsg. (10 évente)
E8: Használatbavételi eng. | G8: Érvényes | H8: Térfogat | I8: ATIKÖFE | J8: MKEH | K8: MKEH
B9: Központi kazánház | C9: Semmelweis u. 8. | D9: olajtároló tartály | E9: 2014-05-12 | G9: 2026-05-12 | H9: 30 m3 | I9: 2018-04-30 | J9: 2019-05-12 | K9: 2024-05-12
B10: 265-ágyas Új Klinika | C10: Semmelweis u. 6. | D10: gázolajtároló tartály | E10: 2013-10-24 | G10: 2025-10-24 | H10: 10 m3 | I10: 2017-10-31 | J10: 2018-10-24 | K10: 2023-10-24

Sheet Követelményértékek
B3: Töltet neme | C3: Töltet veszélyessége | D3: Tartály legnagyobb üzemi nyomása | E3: Tartály térfogata | F3: Ps*V [bar*l] | G3: Típus
D4: Ps [bar] | E4: V [l] vagy DN | F4: Ps*DN [bar] | I4: Egyszerű nyomástartó
B5: Gáznemű | C5: igen | D5: >0,5 | E5: >25 | F5: >1000 | G5: Nyomástartó edény | I5: - töltete levegő vagy nitrogén
B6: Gáznemű | C6: nem | D6: >0,5 | E6: >50 | F6: >3000 | I6: - Ps nyomása nagyobb mint 0,5 bar
B7: Folyadék | C7: igen | D7: >10 | E7: >100 | F7: >5000 | I7: - nincs kitéve tüzelés hatásának
B8: Folyadék | C8: nem | D8: >10 | E8: >100 | F8: >10000 | I8: Psmax = 30 bar
B9: Gáznemű | C9: igen | D9: >0,5 | E9: >100 | F9: >2000 | G9: Nyomástartó csővezeték | I9: Ps*V = 10000 bar * l (MAX)
B10: Gáznemű | C10: nem | D10: >0,5 | E10: >200 | F10: >5000 | I10: °Cüz,min= -50 °C
B11: Folyadék | C11: igen | D11: >10 | E11: >200 | F11: - | I11: °Cüz,max= 300 °C
B12: Folyadék | C12: nem | D12: >10 | E12: >200 | F12: >10000
B13: Túlhev. veszéllyel üzemelő | C13: - | D13: >0,5 | E13: >25 | F13: >1000 | G13: >110 °C
B15: Ha a nyomástartó gyári (üzemi) értékei ezeket a határértékeket meghaladja (mindhármat), akkor hatósági eljárásra és bejelentésre kötelezett a 2/2016 (I. 5.) NGM rendelet szerint!
C17: Ciklusidők
B18: Megnevezés | C18: Külső ellenőrzés [év] | D18: Belső ellenőrzés [év] | E18: Szilárdsági ellenőrzés [év]
B19: Egyszerű nyomástartó | C19: 5 | D19: 10 | E19: 10
B20: Gyorsgőzfejlesztő, ha Ps*V<1000 | C20: 3 | D20: - | E20: 6
B21: Gyorsgőzfejlesztő, ha Ps*V>1000 | C21: 1 | D21: - | E21: 3

Sheet Régi táblázat 2017-ből
A1: SZEGEDI TUDOMÁNYEGYETEM NYOMÁSTARTÓ BERENDEZÉSEI
A2: 2007-07-05
C3: SZTE NYOMÁSTARTÓ BERENDEZÉSEK
C5: STERILEZŐ | D5: GŐZFEJLESZTŐ | E5: LÉGTARTÁLY | F5: AUTOKLÁV | H5: KAZÁNOK | J5: OLAJTÁROLÓK | M5: ESEDÉKES VIZSGÁLAT
A7: SZTE számozás | B7: Kalorc. számozás | C7: Intézmény neve | D7: Üzemel | E7: Berendezés elnevezése | F7: Gy. szám | G7: Gy.év | H7: KAR megnev.: | I7: Besorolási (üzemi) nyomás | J7: Besorolási térfogat | K7: ps.v | L7: Bejelentés ügye elintézve 2005.11.17. | M7: Külső ellenőrzés | N7: Belső ellenőrzés | O7: Szilárdsági ellenőrzés | P7: Gép könyv | Q7: Haszn. utasítás | R7: Hatóság besorolása. | T7: megjegyzés
B8: 8 | C8: Klinikakert "É"
A9: 3 | B9: 24 | C9: Sebészeti klinika | D9: Szeged, Pécsi u. 6. | E9: sterilező GET | F9: 900045 | G9: 1990 | H9: ÁOK (b) | I9: 1és3,5/3,5 | J9: 540/108 | L9: bejelentésre kötelezett | M9: 2018 | N9: 2017 | O9: 2017 | R9: Hatósági bejelentésre+ellenőrzésre köteles
A10: 4 | B10: 25 | C10: Sebészeti klinika | D10: u.a. | E10: sterilező | F10: 900046 | G10: 1990 | H10: ÁOK (b) | I10: 1és3,5/3,5 | J10: 540/108 | L10: bejelentésre kötelezett | M10: 2018 | N10: 2017 | O10: 2017 | R10: Hatósági bejelentésre+ellenőrzésre köteles
A11: 5 | B11: 11 | C11: Sebészeti klinika | D11: u.a. | E11: gőzfejlesztő CERT | F11: 27030 | G11: 2002 | H11: ÁOK (b) | I11: 4.5 | J11: 53 | K11: 238.5 | L11: bejelentésre kötelezett | M11: 2019 | O11: 2019 | R11: Hatósági bejelentésre+ellenőrzésre köteles
A12: 6 | C12: Sebészeti klinika | D12: u.a. | E12: légtartály | F12: 209895 | G12: 1995 | H12: ÁOK (b) | I12: 10 | J12: 500 | K12: 5000 | L12: bejelentésre kötelezett | M12: 2019 | N12: 2021 | O12: 2025 | R12: Használatuk: megadott ideig engedélyezett
A13: 7 | B13: 27 | C13: Szemészeti klinika | D13: Korányi fasor 10-11. | E13: gőzfejlesztő CERT. | F13: 27029 | G13: 2002 | H13: ÁOK (b) | I13: 4.5 | J13: 53 | K13: 238.5 | L13: bejelentésre kötelezett | M13: 2019 | N13: 2019 | O13: 2019 | R13: Hatósági bejelentésre+ellenőrzésre köteles
A14: 8 | B14: 26 | C14: Szemészeti klinika | D14: Korányi fasor 10-11. | E14: sterilező SAN | F14: 86303 | G14: 1986 | H14: ÁOK (b) | J14: 90/500 | L14: bejelentésre kötelezett | M14: 2018 | N14: 2022 | O14: 2027 | R14: Hatósági bejelentésre+ellenőrzésre köteles
A15: 9 | C15: I sz. Belgyógy. Kl. | D15: Korányi fasor 8. | E15: sterilező SAN | F15: 88023 | G15: 1990 | H15: ÁOK (b) | I15: 1és3,0 | J15: 520/120 | L15: bejelentésre kötelezett | M15: 2018 | N15: 2017 | O15: 2017 | R15: Hatósági bejelentésre+ellenőrzésre köteles
A16: 61. | C16: I sz. Belgyógy. Kl. | D16: Korányi fasor 8. | E16: FS 20 formaldehides steril | F16: 94015 | G16: 1994 | H16: 88 kPa (0,88bar) | J16: 21 | K16: 18.48 | M16: Nem ellenörzés köteles | R16: Nem ellenörzés köteles
A17: 59. | C17: Körintenzív | D17: Korányi fasor 7. | E17: légtartály | F17: 903390 | G17: 1990 | H17: ÁOK (b) | I17: 7 | J17: 800 | K17: 5600 | L17: bejelentésre kötelezett | M17: 2018 | N17: 2017 | O17: 2017 | R17: Hatósági bejelentésre+ellenőrzésre köteles
A18: 42. | C18: Nagyoktatási épület | D18: Dóm tér 13. | E18: légtartály | F18: 16683 | G18: 1976 | H18: ÁOK (o) | I18: 16 | J18: 1000 | K18: 16000 | L18: bejelentésre kötelezett | M18: Üzemen kívül | R18: Levélben közölni: nem üzemel. /közölve/
A19: 17 | C19: Bólyai épület pince | D19: Aradi vértanúk tere 1. | E19: légtartály (4629 Berkesi Ottó) | F19: 11853 | G19: 1993 | H19: TTIK | I19: 12 | J19: 350 | L19: bejelentésre kötelezett | M19: 2022 | N19: 2027 | O19: 2027 | R19: Hatósági bejelentésre+ellenőrzésre köteles
A20: 18 | C20: Bólyai épület Radiológia | D20: Aradi vértanúk tere 1. (padlás) | E20: légtartály (6482 Jenei Z.) | F20: 8442 | G20: 1996 | H20: TTK | I20: 7 | J20: 100 | K20: 700 | L20: bejelentésre kötelezett | M20: Üzemen kívül | N20: -új kerül a helyére- | R20: Hatósági bejelentésre+ellenőrzésre köteles
A21: 63. | C21: Bólyai épület Radiológia | D21: Aradi vértanúk tere 1. (belső udvar) | E21: cseppolyós Nitrogén tart. | L21: Linde tulajdona | M21: Engedélyekről a szállító gondoskodik | R21: Hivatal felé nincs teendő.
A22: 20 | C22: Kémiai épület III em. | D22: Dóm tér 7-8. kemenceszoba | E22: légtartály | F22: 5150 | G22: 1999 | H22: TTK | I22: 11 | J22: 300 | K22: 3300 | L22: bejelentésre kötelezett | M22: 2020 | N22: 2025 | O22: 2025 | R22: Használatuk: megadott ideig engedélyezett
A23: 19 | C23: Kémiai épület | D23: u.a. (felső szint) | E23: légtartály | F23: 53 | G23: 2000 | H23: TTIK | I23: 11 | J23: 50 | M23: Hatósági eljárásra nem köteles.
A24: 62. | C24: Béke ép. üveges kompr. | D24: Rerrich B. tér 1. | E24: légtartály | F24: 264 | G24: 2002 | I24: 8 | J24: 100 | L24: bejelentésre kötelezett | M24: Hatósági eljárásra nem köteles. | R24: Hatósági eljárásra nem köteles.
A25: 74. | C25: Mikro és Immunbiol. Int. | D25: Dóm tér 10-11. | E25: LVS 50/70 autokláv | F25: 1220 | G25: 2000 | H25: ÁOK | I25: 2.5 | J25: 137 | K25: 274 | M25: 2019 | N25: 2017 | O25: 2017
A26: 75. | C26: Mikro és Immunbiol. Int. | D26: Dóm tér 10-11. | E26: MA 5402 autokláv | F26: 31 | G26: 1975 | H26: ÁOK | M26: Selejtezve
C27: Klinikakert "D"
A28: 2 | C28: Gyermekklinika | D28: Korányi fasor 14-15. | E28: légtartály | F28: 204895 | G28: 1995 | H28: ÁOK (b) | I28: 7 | J28: 500 | K28: 3500 | L28: bejelentésre kötelezett | M28: 2018 | N28: 2017 | O28: 2017 | R28: Hatósági bejelentésre+ellenőrzésre köteles
A29: 10 | B29: 21 | C29: 410 ágyas klinika | D29: Semmelweis u. 6. | E29: sterilező SAN | F29: 95024 | G29: 1995 | H29: ÁOK (b) | I29: 1és3,0/3.0 | J29: 500/120 | L29: bejelentésre kötelezett | M29: 2018 | N29: 2017 | O29: 2017 | R29: Hatósági bejelentésre+ellenőrzésre köteles
A30: 11 | B30: 22 | C30: 410 ágyas klinika | D30: Semmelweis u. 6. | E30: sterilező SAN | F30: 95025 | G30: 1995 | H30: ÁOK (b) | I30: 1és3,0/3.0 | J30: 500/120 | L30: bejelentésre kötelezett | M30: 2018 | N30: 2017 | O30: 2019 | R30: Hatósági bejelentésre+ellenőrzésre köteles
A31: 12 | B31: 23 | C31: 410 ágyas klinika | D31: Semmelweis u. 6. | E31: sterilező SAN | F31: 90004 | G31: 1991 | H31: ÁOK (b) | I31: 1és3,0/3.0 | J31: 500/120 | L31: bejelentésre kötelezett | M31: 2018 | N31: 2017 | O31: 2017 | R31: Hatósági bejelentésre+ellenőrzésre köteles
A32: 43/b | C32: 410 ágyas klinika | D32: Semmelweis u. 6. | E32: légtartály | F32: 21698-21708 | G32: 2006 | H32: ÁOK
A33: 43 | C33: 410 ágyas klinika | D33: Semmelweis u. 6. | E33: légtartály | F33: 20999 | G33: 1988 | H33: ÁOK (b) | I33: 16 | J33: 1000 | K33: 16000 | L33: bejelentésre kötelezett | M33: 2019 | N33: 2018 | O33: 2018 | R33: Használatuk: megadott ideig engedélyezett
A34: 57. | C34: 410 ágyas klinika | D34: Semmelweis u. 6. | E34: cseppfolyós oxigén tart | F34: 31392 | G34: 1988 | H34: ÁOK (b) | I34: 15 | J34: 11000 | K34: 165000 | L34: bejelentésre kötelezett | M34: Engedélyről a szállító gondoskodik | R34: Időszakos vizsgálatot elvégeztetni. /70/3351129 Láng I./
A35: 70. | C35: Női Klinika | D35: Semmelweis u.1. | E35: GE 2609-1 Sterilező | F35: 980831 | G35: 1998 | H35: ÁOK | I35: 3.5 | J35: 415 | K35: 1453 | M35: 2019 | N35: 2018 | O35: 2018 | R35: Létesítési engedélyt köteles kérni
A36: 72. | C36: Női Klinika | D36: Semmelweis u.1. | E36: Formaldehides ster. | F36: 950406 | G36: 1993 | H36: ÁOK | I36: 1 | J36: 177 | K36: 177 | M36: Nem ellenörzés köteles | R36: Nem hatósági bejelentésre és ellenőrzésre kötelezett
A37: 73. | C37: Női Klinika | D37: Semmelweis u.1. | E37: Hidrogénperoxidos ster | F37: 60366 | G37: 2006 | H37: ÁOK | I37: 0.4 | J37: 30 | K37: 12 | M37: Nem ellenörzés köteles | R37: Nem hatósági bejelentésre és ellenőrzésre kötelezett
A38: 21 | B38: 4 | C38: Klinikai Mikrobiol. Int. | D38: Semmelweis u. 6. | E38: autokláv fsz. (Nagy Anna 5401) | F38: 278160 | G38: 1977 | H38: TTK | I38: 2.5 | J38: 115 | K38: 287.5 | L38: bejelentésre kötelezett | M38: Üzemen kívül | R38: Hatósági bejelentésre+ellenőrzésre köteles
A39: 22 | B39: 1 | C39: Klinikai Mikrobiol. Int. | D39: u.a. | E39: autokláv | L39: Vissza lett szállítva! | M39: MTA tulajdon | R39: Hivatal felé nincs teendő.
A40: 23 | C40: Klinikai Mikrobiol. Int. | D40: u.a. | E40: autokláv em. | F40: 433 | G40: 1977 | H40: TTK | I40: 2.5 | J40: 115 | K40: 287.5 | L40: besorolásra kötelezett | M40: 2019 | N40: 2021 | O40: 2026 | R40: Hatósági bejelentésre+ellenőrzésre köteles | T40: ellenőrzési idő az üzemeltető rendelkezése szerint
A41: 24 | C41: Klinikai Mikrobiol. Int. | D41: u.a. | E41: autokláv em. | F41: 31-4764/0 | G41: 1987 | H41: TTK | I41: 3,0/ 1és3,0 | J41: 150/16 | L41: besorolásra kötelezett | M41: 2019 | N41: 2021 | O41: 2026 | R41: Hatósági bejelentésre+ellenőrzésre nem köteles | T41: ellenőrzési idő az üzemeltető rendelkezése szerint
A42: 25 | C42: Klinikai Mikrobiol. Int. | D42: u.a. | E42: autoklav | F42: 452 | G42: 1977 | H42: TTK | I42: 2.5 | J42: 115 | M42: 2019 | N42: 2021 | O42: 2026 | T42: ellenőrzési idő az üzemeltető rendelkezése szerint
A43: 44 | C43: Közp.gyógyszertár | D43: Semmelweis u. 6. | E43: sterilező GET | F43: 920773 | G43: 1992 | H43: ÁOK (b) | I43: 1és3,5/3,5 | J43: 560/100 | L43: bejelentésre kötelezett | M43: 2018 | N43: 2017 | O43: 2017 | R43: Hatósági bejelentésre+ellenőrzésre köteles
A44: 45 | C44: Központi gyógyszertár | D44: u.a. | E44: sterilező | F44: 920772 | G44: 1992 | H44: ÁOK (b) | I44: 1és3,5/3,5 | J44: 560/100 | L44: bejelentésre kötelezett | M44: Üzemen kívül | R44: Hatósági bejelentésre+ellenőrzésre köteles
A45: 46 | C45: Központi gyógyszertár | D45: u.a. | E45: légtartály | F45: 204692 | G45: 1992 | H45: ÁOK (b) | I45: 10 | J45: 500 | K45: 5000 | L45: bejelentésre kötelezett | M45: 2018 | N45: 2020 | O45: 2025 | R45: Használatuk: megadott ideig engedélyezett
A46: 15 | C46: KP. Kazánház | D46: Semmelweis u. 8. | E46: kompresszor-légtartály | F46: 2062 | G46: 1983 | H46: ÁOK (b) | I46: 10 | J46: 500 | K46: 5000 | L46: bejelentésre kötelezett | M46: 2020 | N46: 2022 | O46: 2027 | R46: Hatósági bejelentésre+ellenőrzésre köteles
A47: 47. | C47: Központi kazánház | D47: u.a. II/2. | E47: Vitomax 200 HS | F47: 187003050 | G47: 2003 | H47: ÁOK (b) | I47: 12 | J47: 11800 | K47: 141600 | L47: bejelentésre kötelezett | M47: 2018 | N47: 2017 | O47: 2022 | R47: Időszakos ellenőrzést elvégeztetni
A48: 48. | C48: Központi kazánház | D48: u.a. II/1. | E48: Vitomax 200 HS | F48: 187003049 | G48: 2003 | H48: ÁOK (b) | I48: 12 | J48: 11800 | K48: 141600 | L48: bejelentésre kötelezett | M48: 2018 | N48: 2017 | O48: 2022 | R48: Időszakos ellenőrzést elvégeztetni
A49: 49. | C49: Központi kazánház | D49: u.a. I. | E49: 3HO-7/12 | F49: 7672 | G49: 1978 | H49: ÁOK (b) | I49: 12 | J49: 25000 | K49: 300000 | L49: bejelentésre kötelezett | M49: 2018 | N49: 2019 | O49: 2024 | R49: Időszakos ellenőrzést. elvégeztetni
A50: 53. | C50: Gyermekkórház | D50: Temesvári krt 35-37. | E50: sterilező tip: 23324 | F50: 97002 | G50: 1997 | H50: ÁOK (b) | I50: 1és3,0/3,0 | J50: 520/120 | L50: bejelentésre kötelezett | M50: Hatósági eljárásra nem köteles
A51: 54. | C51: Gyermekkórház | D51: u.a. | E51: sterilező tip:GS 459-2-FO | F51: 96102 | G51: 1996 | H51: ÁOK (b) | L51: bejelentésre kötelezett | M51: Nem bejelentésköteles | R51: Nem bejelentésköteles
A52: 58. | C52: Gyermekkórház | D52: u.a | E52: cseppfolyós oxigén tart | G52: 1975 | H52: ÁOK (b) | I52: 18 | J52: 15000 | K52: 270000 | L52: Linde tulajdona | M52: Engedélyekről a szállító gondoskodik
A53: 41 | C53: Mosoda | D53: Semmelweis u. 8. | E53: légtartály | F53: 17671 | G53: 1981 | H53: ÁOK (b) | I53: 8 | J53: 2000 | K53: 16000 | L53: bejelentésre kötelezett | M53: Üzemen kívül | R53: Jelentve (2008.04.02.)
B54: 37 | C54: Fogklinika
A55: 28 | B55: 38 | C55: Fogklinika | D55: Tisza Lajos krt. 64-66. | E55: légtartály | F55: 668335 | H55: FK | I55: 8 | J55: 110 | K55: 880 | L55: bejelentésre kötelezett | M55: Hatósági eljárásra nem köteles! | R55: Hatósági eljárásra nem köteles!
A56: 71. | C56: Fogklinika | D56: Tisza Lajos krt. 64-66. | E56: GE 666-1 Sterilező | F56: 950427 | G56: 1995 | H56: FK | I56: 3/-1 és 3.5/-1 | M56: 2018 | N56: 2017 | O56: 2017 | R56: Létesítési dokumentációig üzemben tartható
C57: Anatómia
A58: 40. | C58: Anatómia Intézet | D58: Kossuth Lajos sgt 40. | E58: gőzfejlesztő | F58: 10346 | G58: 2000 | H58: ÁOK (o) | I58: 10 | J58: 9.8 | K58: 98 | L58: nem köteles | M58: Nem bejelentésköteles | R58: Nem bejelentésköteles
A59: 38. | B59: 31 | C59: Domaszék | D59: Domaszék külterület. | E59: VERU gőzkazán | F59: 1081 | G59: 1989 | H59: ÁOK (o) | I59: 3.5 | J59: 110 | K59: 385 | L59: bejelentésre kötelezett | M59: 2018 | N59: 2018 | O59: 2026
A60: 39. | C60: SZTE Domaszék | D60: u.a. | E60: autokláv (vill.:8kVA) | F60: 2353 | G60: 1979 | H60: ÁOK (o) | I60: 1és2,5/2,5 | J60: 100/12 | L60: bejelentésre kötelezett | M60: Üzemen kívül! | R60: Hatósági bejelentésre+ellenőrzésre köteles
A61: 52. | C61: Domaszék | D61: u.a. | E61: autokláv | F61: 271 | G61: 1989 | H61: ÁOK (o) | I61: 3 | J61: 140 | K61: 420 | L61: bejelentésre kötelezett | M61: 2018 | N61: 2017 | O61: 2017
A62: 50. | C62: GYTK | D62: Eötvös u. 2. | E62: légtartály | F62: 29016 | G62: 1975 | H62: GYTK | I62: 10 | J62: 2000 | K62: 20000 | L62: bejelentésre kötelezett | M62: 2019 | N62: 2018 | O62: 2018 | R62: Használatuk: megadott ideig engedélyezett
A63: 51. | C63: GYTK | D63: Eötvös u. 2. | E63: autokláv | F63: 15912257 | G63: 1959 | H63: GYTK | I63: 3 | J63: 30 | K63: 90 | L63: nem köteles | M63: Hatósági eljárásra nem köteles! | R63: Bejelenteni, hatósági ellenőrzésre nem köteles.
A64: 64. | C64: Irinyi épület | D64: Tisza L. krt. 103. | E64: TP 300/07G | F64: 10909 | G64: 1991 | H64: HMV | I64: 0.25 | J64: 820 | M64: Nem használjuk. | R64: Közölni: nem használjuk. /közölve/
A65: 65. | C65: Irinyi épület | D65: Tisza L. krt. 103. | E65: TP 300/07G | F65: 10910 | G65: 1991 | H65: HMV | I65: 0.25 | J65: 820 | M65: Nem használjuk. | R65: Közölni: nem használjuk. /közölve/
C66: Biológia Újszeged
A67: 60. | C67: Biológia Mikrobiológia Tsz | D67: Közép fasor 52. 3.em. | E67: autokláv | F67: 31-18200/9 | H67: TTK | I67: 2.5 | J67: 150 | K67: 375 | L67: bejelentésre kötelezett | M67: 2019 | N67: 2021 | O67: 2026
A68: 29 | B68: 2 | C68: Biol.Mikrobiol.Tanszék | D68: Közép fasor 52. 3.em. | E68: autokláv | F68: 315382/2 | H68: TTIK | I68: 2.5 | J68: 150 | K68: 375 | L68: bejelentésre kötelezett | M68: 2019 | N68: 2021 | O68: 2026 | R68: Hatósági bejelentésre+ellenőrzésre köteles | T68: ellenőrzési idő az üzemeltető rendelkezése szerint
A69: 30 | B69: 3 | C69: Biol.Mikrobiol.Tanszék | D69: Közép fasor 52. 3.em. | E69: autokláv | F69: 1511-558-53 | G69: 1958 | H69: TTIK | I69: 2.5 | J69: 125 | K69: 312.5 | L69: bejelentésre kötelezett | M69: 2019 | N69: 2021 | O69: 2026 | R69: Hatósági bejelentésre+ellenőrzésre köteles | T69: ellenőrzési idő az üzemeltető rendelkezése szerint
A70: 69. | C70: Biol.Mikrobiol.Tanszék | D70: Közép fasor 52. 3.em. | E70: Atlas Copco GX 7 | F70: 7000969 | G70: 2007. | H70: TTK | I70: Pmax 7,3 bar | J70: 500 | K70: 3650 | M70: 2018 | N70: 2017 | O70: 2017 | R70: Létesítési engedélyt köteles kérni
C72: Mérnök kar
A73: 31 | B73: 12 | C73: SZTE MK | D73: Moszkvai krt. 5-7. | E73: autokláv | F73: 196001 | G73: 1960 | H73: MK | I73: 3 | J73: 400 | K73: 1200 | L73: bejelentésre kötelezett | M73: 2018 | N73: 2017 | O73: 2017 | R73: Hatósági bejelentésre+ellenőrzésre köteles
A74: 32 | B74: 13 | C74: SZTE MK | D74: Moszkvai krt. 5-7. | E74: légtartály | F74: 2063 | G74: 1988 | H74: MK | I74: 7.5 | J74: 500 | K74: 3750 | L74: bejelentésre kötelezett | M74: 2018 | N74: 2017 | O74: 2017 | R74: Hatósági bejelentésre+ellenőrzésre köteles
A75: 88 | C75: SZTE MK | D75: Moszkvai krt. 9. | E75: légtartály | F75: 435294 | G75: 2009 | H75: MK | I75: 11 | J75: 500 | K75: 5500 | M75: 2019 | N75: 2021 | O75: 2021
A76: 55. | C76: SZTE MK | D76: Moszkvai krt. 5-7. | E76: TP 300/12G I. | F76: 9182 | G76: 1987 | H76: MK | I76: 8 | J76: 860 | K76: 6880 | L76: bejelentésre kötelezett | M76: 2019 | N76: 2021 | O76: 2026 | R76: Időszakos ellenőrzést elvégeztetni
A77: 56. | C77: SZTE MK | D77: Moszkvai krt. 5-7. | E77: TP 300/12G II. | F77: 9183 | G77: 1987 | H77: MK | I77: 8 | J77: 860 | K77: 6880 | L77: bejelentésre kötelezett | M77: 2019 | N77: 2021 | O77: 2026 | R77: Időszakos ellenőrzést. elvégeztetni
A78: 66. | C78: SZTE MK | D78: Moszkvai krt. 5-7. | E78: TP 600/12G | F78: 9184 | G78: 1987 | H78: HMV | M78: Melegvizes
C79: MFK Hmvhely
A80: 33 | B80: 14 | C80: SZTE MFK Hmvhely Mikrobiológia | D80: Andrássy u.15. | E80: autokláv | F80: 81013 | G80: 1981 | H80: MFK | I80: 1és2,5/2,5 | J80: 150 | L80: bejelentésre kötelezett | M80: 2018 | N80: 2021 | O80: 2026 | R80: Hatósági bejelentésre+ellenőrzésre köteles
A81: 34. | B81: 15 | C81: SZTE MFK Hmvhely | D81: Andrássy u.15. | E81: autokláv | F81: 2251/9 | H81: MFK | I81: 1.5 | J81: 15 | K81: 22.5 | L81: nem köteles | M81: Hatósági eljárásra nem köteles! | R81: Bejelenteni, hatósági ellenőrzése nem köteles.
A82: 35 | B82: 17 | C82: SZTE MFK Hmvhely | D82: Andrássy u.15. | E82: autokláv | F82: 22507/9 | G82: 1981 | H82: MFK | I82: 1.5 | J82: 15 | K82: 22.5 | L82: nem köteles | M82: Hatósági eljárásra nem köteles! | R82: Bejelenteni, hatósági ellenőrzése nem köteles.
A83: 36 | B83: 16 | C83: SZTE MFK Hmvhely | D83: Andrássy u.15. | E83: autokláv | F83: 2253/9 | H83: MFK | I83: 1.5 | J83: 15 | K83: 22.5 | L83: nem köteles | M83: Hatósági eljárásra nem köteles! | R83: Bejelenteni, hatósági ellenőrzése nem köteles.
A84: 68. | C84: IV. kazán | D84: Andrássy u. 15. | E84: Lavatherm | F84: 752 | G84: 1976 | H84: HMV | I84: 0.3 | M84: Melegvizes
A85: 37. | B85: 34 | C85: SZTE MFK Kutasi út | D85: Kutasi u. | E85: PB gáztartály | F85: 507396 | G85: 1996 | H85: MFK | L85: Bérlemény | M85: Engedélyekről a szállító gondoskodik | R85: Hivatal felé nincs teendő.
A86: 67. | B86: 35 | C86: HMVhely III. kazán | D86: Andrássy u. 15. | E86: Lavatherm | F86: 765 | G86: 1977 | H86: HMV | I86: 0.3 | M86: Melegvizes
A87: SZTE számozás | B87: Kalorc. számozás | C87: Intézmény neve | D87: Üzemel | E87: Berendezés elnevezése | F87: Gy. szám | G87: Gy.év | H87: KAR megnev.: | I87: Besorolási (üzemi) nyomás | J87: Besorolási térfogat | K87: ps.v | L87: Bejelentés ügye elintézve 2005.11.17. | M87: Külső ellenőrzés | N87: Belső ellenőrzés | O87: Szilárdsági ellenőrzés | P87: Gép könyv | Q87: Haszn. utasítás | R87: Hatóság besorolása.
A88: 76 | C88: Biokémiai Intézet | D88: Dóm tér 9. | E88: ZMB 48 V. hord.kompr. | G88: 2005 | I88: 8 | J88: 24 | K88: 192
C89: II. Korház
A90: 77. | C90: II. Korház (padlás) | D90: Kálvária sgt. 57. | E90: gőzfejlesztő Certuss | F90: 11780 | G90: 2005 | H90: ÁOK | I90: 10 | J90: 32.3 | K90: 323
A91: 78. | C91: II. Korház (konyha) | D91: Kálvária sgt. 57. | E91: gőzfejlesztő Certuss | F91: 11823 | G91: 2005 | H91: ÁOK | I91: 10 | J91: 32.3 | K91: 323 | M91: Üzemen kívül helyezve
A92: 80. | C92: II. Korház | D92: Kálvária sgt. 57. | E92: sterilizáló (Sanamij) | F92: 5042 | G92: 2005 | H92: tip 669-2V | I92: 3 | J92: 493 | M92: 2019 | N92: 2018 | O92: 2018
A93: 79. | C93: II. Korház | D93: Kálvária sgt. 57. | E93: sterilizáló (Sanamij) | F93: 5041 | G93: 2005 | H93: tip 669-2V | I93: 3 | J93: 493 | M93: 2019 | N93: 2018 | O93: 2018
A94: 81. | C94: II. Korház | D94: Kálvária sgt. 57. | E94: sterilizáló (Sanamij) | F94: 5017 | G94: 2005 | H94: tip 66-12-V | I94: 2.75 | J94: 713 | M94: 2019 | N94: 2021 | O94: 2026
A95: 82. | C95: II. Korház | D95: Kálvária sgt. 57. | E95: cseppfolyós oxigén | F95: 360516 | H95: tip KV 36 | M95: Engedélyekről a szállító gondoskodik
A96: 83. | C96: II. Korház Urológia műtő | D96: Kálvária sgt. 57. | E96: asztali gőzfejlesztő | F96: 6218844511 | G96: 1999 | H96: Statim 2000 | J96: 50lit. alatti
A97: 84 | C97: II. Korház Seb. műtő | D97: Kálvária sgt. 57. | E97: asztali gőzfejlesztő | F97: 6218964012 | G97: 1999 | H97: Statim 2000 | J97: 50lit. alatti
A98: 85. | C98: II. Korház | D98: Kálvária sgt. 57. | E98: Atlas Copco GX 7 | F98: 44925 | G98: 2005 | H98: ÁOK | I98: 11 | J98: 270 | M98: 2019 | N98: 2018 | O98: 2018
A99: 86. | C99: II. Korház | D99: Kálvária sgt. 57. | E99: Atlas Copco GX 7 | F99: 44918 | G99: 2005 | H99: ÁOK | I99: 11 | J99: 270 | M99: 2019 | N99: 2018 | O99: 2018
A100: 87. | C100: II. Korház | D100: Kálvária sgt. 57. | E100: Atlas Copco GX 7 | F100: 44935 | G100: 2005 | H100: ÁOK | I100: 11 | J100: 270 | L100: Beépítésre fog kerülni | M100: 2019 | N100: 2018 | O100: 2018
C104: Központi kazánház | D104: Semmelweis u. 8. | E104: olajtároló tartály | J104: 30 m3 | N104: 2018
C105: Füvészkert | D105: Lövölde u. 42. | E105: olajtároló tartály | J105: 50 m3 | N105: 2018
C115: Frissítve:2017.09.17
C116: Fejér Zoltán
